{"text_format":"3","workbook":"xlsx","n_sheets":4,"sheets":["Score Tracker","Your Performance","Settings","Calculations"],"not_rendered":{"defined_names":3,"comments":1},"read":"whole","date_system":"1900"}

{"sheet":"Score Tracker","index":0,"n_rows":14,"n_cols":6,"rows_kept":14}
[null,"Enter Your Scores Here"]
[]
[null,null,"Class","Type","Description","Score"]
[null,null,"Modern French","Homework","WW II History",{"v":0.8,"d":"80%"}]
[null,null,"Advanced Programming in Java","Midterm",null,{"v":0.75,"d":"75%"}]
[null,null,"Spanish","Homework",null,{"v":0.5,"d":"50%"}]
[null,null,"Theoretical Physics","Homework",null,{"v":0.95,"d":"95%"}]
[null,null,"Modern French","Homework","WW I History",{"v":0.9,"d":"90%"}]
[null,null,"Modern French","Homework","Pages 30 - 41",{"v":0.8,"d":"80%"}]
[null,null,"Composition","Essay","Persuasion paper",{"v":0.95,"d":"95%"}]
[null,null,"Mathematics 1","Homework","Pages 21 & 26",{"v":0.8,"d":"80%"}]
[null,null,"Mathematics 2","Homework","Pages 15 & 18",{"v":0.85,"d":"85%"}]
[null,null,"Mathematics 1","Homework","Pages 34 - 36",{"v":0.8,"d":"80%"}]
[null,null,"Mathematics 2","Quiz",null,{"v":0.95,"d":"95%"}]

{"sheet":"Your Performance","index":1,"n_rows":31,"n_cols":8,"rows_kept":31}
[null,"Your Performance"]
[]
[null,null,"Totals"]
[null,null,{"$f":"\"Hours: \"&SUM(tblClasses[Credit Hours])","v":"Hours: 24"},{"$f":"AVERAGE(D7:D31)","v":{"v":0.8104761904761906,"d":"81%"}},{"$f":"AVERAGE(E7:E31)","v":{"v":2.7142857142857144,"d":"2.71"}},{"$f":"SUM(F7:F31)","v":{"v":2.625,"d":"2.63"}},{"$f":"IFERROR(HLOOKUP(D4,lstGPAMapping,2),\"\")","v":"B-"}]
[]
[null,null,"Classes","%","GPA","wGPA","Letter","Overall Performance"]
[null,null,{"$f":"Calculations!C6","v":"Modern French"},{"$f":"Calculations!AL6","v":{"v":0.8333333333333334,"d":"83%"}},{"$f":"Calculations!AM6","v":{"v":3,"d":"3.00"}},{"$f":"IFERROR(E7*Settings!D9/SUM(tblClasses[Credit Hours]),\"\")","v":{"v":0.375,"d":"0.38"}},{"$f":"Calculations!AN6","v":"B"}]
[null,null,{"$f":"Calculations!C7","v":"Theoretical Physics"},{"$f":"Calculations!AL7","v":{"v":0.95,"d":"95%"}},{"$f":"Calculations!AM7","v":{"v":4,"d":"4.00"}},{"$f":"IFERROR(E8*Settings!D10/SUM(tblClasses[Credit Hours]),\"\")","v":{"v":0.5,"d":"0.50"}},{"$f":"Calculations!AN7","v":"A"}]
[null,null,{"$f":"Calculations!C8","v":"Mathematics 1"},{"$f":"Calculations!AL8","v":{"v":0.8000000000000002,"d":"80%"}},{"$f":"Calculations!AM8","v":2.67},{"$f":"IFERROR(E9*Settings!D11/SUM(tblClasses[Credit Hours]),\"\")","v":{"v":0.445,"d":"0.45"}},{"$f":"Calculations!AN8","v":"B-"}]
[null,null,{"$f":"Calculations!C9","v":"Mathematics 2"},{"$f":"Calculations!AL9","v":{"v":0.89,"d":"89%"}},{"$f":"Calculations!AM9","v":3.33},{"$f":"IFERROR(E10*Settings!D12/SUM(tblClasses[Credit Hours]),\"\")","v":{"v":0.555,"d":"0.56"}},{"$f":"Calculations!AN9","v":"B+"}]
[null,null,{"$f":"Calculations!C10","v":"Advanced Programming in Java"},{"$f":"Calculations!AL10","v":{"v":0.7500000000000001,"d":"75%"}},{"$f":"Calculations!AM10","v":{"v":2,"d":"2.00"}},{"$f":"IFERROR(E11*Settings!D13/SUM(tblClasses[Credit Hours]),\"\")","v":{"v":0.4166666666666667,"d":"0.42"}},{"$f":"Calculations!AN10","v":"C"}]
[null,null,{"$f":"Calculations!C11","v":"Spanish"},{"$f":"Calculations!AL11","v":{"v":0.5,"d":"50%"}},{"$f":"Calculations!AM11","v":{"v":0,"d":"0.00"}},{"$f":"IFERROR(E12*Settings!D14/SUM(tblClasses[Credit Hours]),\"\")","v":{"v":0,"d":"0.00"}},{"$f":"Calculations!AN11","v":"F"}]
[null,null,{"$f":"Calculations!C12","v":"Composition"},{"$f":"Calculations!AL12","v":{"v":0.95,"d":"95%"}},{"$f":"Calculations!AM12","v":{"v":4,"d":"4.00"}},{"$f":"IFERROR(E13*Settings!D15/SUM(tblClasses[Credit Hours]),\"\")","v":{"v":0.3333333333333333,"d":"0.33"}},{"$f":"Calculations!AN12","v":"A"}]
[null,null,{"$f":"Calculations!C13","v":""},{"$f":"Calculations!AL13","v":""},{"$f":"Calculations!AM13","v":""},{"$f":"IFERROR(E14*Settings!D16/SUM(tblClasses[Credit Hours]),\"\")","v":""},{"$f":"Calculations!AN13","v":""}]
[null,null,{"$f":"Calculations!C14","v":""},{"$f":"Calculations!AL14","v":""},{"$f":"Calculations!AM14","v":""},{"$f":"IFERROR(E15*Settings!D17/SUM(tblClasses[Credit Hours]),\"\")","v":""},{"$f":"Calculations!AN14","v":""}]
[null,null,{"$f":"Calculations!C15","v":""},{"$f":"Calculations!AL15","v":""},{"$f":"Calculations!AM15","v":""},{"$f":"IFERROR(E16*Settings!D18/SUM(tblClasses[Credit Hours]),\"\")","v":""},{"$f":"Calculations!AN15","v":""}]
[null,null,{"$f":"Calculations!C16","v":""},{"$f":"Calculations!AL16","v":""},{"$f":"Calculations!AM16","v":""},{"$f":"IFERROR(E17*Settings!D19/SUM(tblClasses[Credit Hours]),\"\")","v":""},{"$f":"Calculations!AN16","v":""}]
[null,null,{"$f":"Calculations!C17","v":""},{"$f":"Calculations!AL17","v":""},{"$f":"Calculations!AM17","v":""},{"$f":"IFERROR(E18*Settings!D20/SUM(tblClasses[Credit Hours]),\"\")","v":""},{"$f":"Calculations!AN17","v":""}]
[null,null,{"$f":"Calculations!C18","v":""},{"$f":"Calculations!AL18","v":""},{"$f":"Calculations!AM18","v":""},{"$f":"IFERROR(E19*Settings!D21/SUM(tblClasses[Credit Hours]),\"\")","v":""},{"$f":"Calculations!AN18","v":""}]
[null,null,{"$f":"Calculations!C19","v":""},{"$f":"Calculations!AL19","v":""},{"$f":"Calculations!AM19","v":""},{"$f":"IFERROR(E20*Settings!D22/SUM(tblClasses[Credit Hours]),\"\")","v":""},{"$f":"Calculations!AN19","v":""}]
[null,null,{"$f":"Calculations!C20","v":""},{"$f":"Calculations!AL20","v":""},{"$f":"Calculations!AM20","v":""},{"$f":"IFERROR(E21*Settings!D23/SUM(tblClasses[Credit Hours]),\"\")","v":""},{"$f":"Calculations!AN20","v":""}]
[null,null,{"$f":"Calculations!C21","v":""},{"$f":"Calculations!AL21","v":""},{"$f":"Calculations!AM21","v":""},{"$f":"IFERROR(E22*Settings!D24/SUM(tblClasses[Credit Hours]),\"\")","v":""},{"$f":"Calculations!AN21","v":""}]
[null,null,{"$f":"Calculations!C22","v":""},{"$f":"Calculations!AL22","v":""},{"$f":"Calculations!AM22","v":""},{"$f":"IFERROR(E23*Settings!D25/SUM(tblClasses[Credit Hours]),\"\")","v":""},{"$f":"Calculations!AN22","v":""}]
[null,null,{"$f":"Calculations!C23","v":""},{"$f":"Calculations!AL23","v":""},{"$f":"Calculations!AM23","v":""},{"$f":"IFERROR(E24*Settings!D26/SUM(tblClasses[Credit Hours]),\"\")","v":""},{"$f":"Calculations!AN23","v":""}]
[null,null,{"$f":"Calculations!C24","v":""},{"$f":"Calculations!AL24","v":""},{"$f":"Calculations!AM24","v":""},{"$f":"IFERROR(E25*Settings!D27/SUM(tblClasses[Credit Hours]),\"\")","v":""},{"$f":"Calculations!AN24","v":""}]
[null,null,{"$f":"Calculations!C25","v":""},{"$f":"Calculations!AL25","v":""},{"$f":"Calculations!AM25","v":""},{"$f":"IFERROR(E26*Settings!D28/SUM(tblClasses[Credit Hours]),\"\")","v":""},{"$f":"Calculations!AN25","v":""}]
[null,null,{"$f":"Calculations!C26","v":""},{"$f":"Calculations!AL26","v":""},{"$f":"Calculations!AM26","v":""},{"$f":"IFERROR(E27*Settings!D29/SUM(tblClasses[Credit Hours]),\"\")","v":""},{"$f":"Calculations!AN26","v":""}]
[null,null,{"$f":"Calculations!C27","v":""},{"$f":"Calculations!AL27","v":""},{"$f":"Calculations!AM27","v":""},{"$f":"IFERROR(E28*Settings!D30/SUM(tblClasses[Credit Hours]),\"\")","v":""},{"$f":"Calculations!AN27","v":""}]
[null,null,{"$f":"Calculations!C28","v":""},{"$f":"Calculations!AL28","v":""},{"$f":"Calculations!AM28","v":""},{"$f":"IFERROR(E29*Settings!D31/SUM(tblClasses[Credit Hours]),\"\")","v":""},{"$f":"Calculations!AN28","v":""}]
[null,null,{"$f":"Calculations!C29","v":""},{"$f":"Calculations!AL29","v":""},{"$f":"Calculations!AM29","v":""},{"$f":"IFERROR(E30*Settings!D32/SUM(tblClasses[Credit Hours]),\"\")","v":""},{"$f":"Calculations!AN29","v":""}]
[null,null,{"$f":"Calculations!C30","v":""},{"$f":"Calculations!AL30","v":""},{"$f":"Calculations!AM30","v":""},{"$f":"IFERROR(E31*Settings!D33/SUM(tblClasses[Credit Hours]),\"\")","v":""},{"$f":"Calculations!AN30","v":""}]

{"sheet":"Settings","index":2,"n_rows":15,"n_cols":16,"rows_kept":15,"merged":[[5,2,5,15]]}
[null,"Settings"]
[null,null,"Scores and GPA mapping"]
[null,null,"Percentage",{"v":0,"d":"0%"},{"v":0.6,"d":"60%"},{"v":0.63,"d":"63%"},{"v":0.67,"d":"67%"},{"v":0.7,"d":"70%"},{"v":0.73,"d":"73%"},{"v":0.77,"d":"77%"},{"v":0.8,"d":"80%"},{"v":0.83,"d":"83%"},{"v":0.87,"d":"87%"},{"v":0.9,"d":"90%"},{"v":0.93,"d":"93%"},{"v":0.97,"d":"97%"}]
[null,null,"Letter Grade","F","D-","D","D+","C-","C","C+","B-","B","B+","A-","A","A+"]
[null,null,"GPA",0,0.67,1,1.33,1.67,2,2.33,2.67,3,3.33,3.67,4,4]
[]
[null,null,"Weighted scores for up to 25 classes"]
[null,null,"Classes you are taking","Credit Hours","Homework","Essay","Quiz","Project","Midterm","Final Exam","Other","% Total"]
[null,null,"Modern French",{"v":3,"d":"3.0"},{"v":0.1,"d":"10%"},{"v":0.15,"d":"15%"},{"v":0.15,"d":"15%"},{"v":0.1,"d":"10%"},{"v":0.2,"d":"20%"},{"v":0.3,"d":"30%"},null,{"$f":"SUM(tblClasses[[#This Row],[Homework]:[Other]])","v":{"v":1,"d":"100%"}}]
[null,null,"Theoretical Physics",{"v":3,"d":"3.0"},{"v":0.15,"d":"15%"},{"v":0.15,"d":"15%"},{"v":0.1,"d":"10%"},{"v":0.1,"d":"10%"},{"v":0.15,"d":"15%"},{"v":0.3,"d":"30%"},{"v":0.05,"d":"5%"},{"$f":"SUM(tblClasses[[#This Row],[Homework]:[Other]])","v":{"v":1,"d":"100%"}}]
[null,null,"Mathematics 1",{"v":4,"d":"4.0"},{"v":0.1,"d":"10%"},{"v":0.15,"d":"15%"},{"v":0.15,"d":"15%"},{"v":0.1,"d":"10%"},{"v":0.2,"d":"20%"},{"v":0.3,"d":"30%"},null,{"$f":"SUM(tblClasses[[#This Row],[Homework]:[Other]])","v":{"v":1,"d":"100%"}}]
[null,null,"Mathematics 2",{"v":4,"d":"4.0"},{"v":0.15,"d":"15%"},{"v":0.15,"d":"15%"},{"v":0.1,"d":"10%"},{"v":0.1,"d":"10%"},{"v":0.15,"d":"15%"},{"v":0.3,"d":"30%"},{"v":0.05,"d":"5%"},{"$f":"SUM(tblClasses[[#This Row],[Homework]:[Other]])","v":{"v":1,"d":"100%"}}]
[null,null,"Advanced Programming in Java",{"v":5,"d":"5.0"},{"v":0.15,"d":"15%"},{"v":0.15,"d":"15%"},{"v":0.1,"d":"10%"},{"v":0.1,"d":"10%"},{"v":0.2,"d":"20%"},{"v":0.3,"d":"30%"},null,{"$f":"SUM(tblClasses[[#This Row],[Homework]:[Other]])","v":{"v":1,"d":"100%"}}]
[null,null,"Spanish",{"v":3,"d":"3.0"},{"v":0.1,"d":"10%"},{"v":0.15,"d":"15%"},{"v":0.17,"d":"17%"},{"v":0.13,"d":"13%"},{"v":0.2,"d":"20%"},{"v":0.2,"d":"20%"},{"v":0.05,"d":"5%"},{"$f":"SUM(tblClasses[[#This Row],[Homework]:[Other]])","v":{"v":1,"d":"100%"}}]
[null,null,"Composition",{"v":2,"d":"2.0"},{"v":0.15,"d":"15%"},{"v":0.15,"d":"15%"},{"v":0.12,"d":"12%"},{"v":0.15,"d":"15%"},{"v":0.15,"d":"15%"},{"v":0.25,"d":"25%"},{"v":0.03,"d":"3%"},{"$f":"SUM(tblClasses[[#This Row],[Homework]:[Other]])","v":{"v":1,"d":"100%"}}]

{"sheet":"Calculations","index":3,"n_rows":657,"n_cols":40,"rows_kept":657,"hidden":true}
[null,"Calculations"]
[null,null,"This worksheet provides calculations for your grades & GPA and should remain hidden. Any changes to this sheet could result in errors."]
[]
[null,null,"Current Class List","Scores (out of 1)",{"$nulls":24},"Grade Calculation"]
[null,null,"Class",1,2,3,4,5,6,7,8,9,10,11,12,13,14,15,16,17,18,19,20,21,22,23,24,25,{"$f":"tblClasses[[#Headers],[Homework]]","v":"Homework"},{"$f":"tblClasses[[#Headers],[Essay]]","v":"Essay"},{"$f":"tblClasses[[#Headers],[Quiz]]","v":"Quiz"},{"$f":"tblClasses[[#Headers],[Project]]","v":"Project"},{"$f":"tblClasses[[#Headers],[Midterm]]","v":"Midterm"},{"$f":"tblClasses[[#Headers],[Final Exam]]","v":"Final Exam"},{"$f":"tblClasses[[#Headers],[Other]]","v":"Other"},"Total","Total Possible Points","Total %","Grade Point","Letter Grade"]
[null,null,{"$f":"IF(Settings!C9=\"\",\"\",Settings!C9)","v":"Modern French"},{"$f":"IFERROR(INDEX(tblClassScores[],MATCH($C6:$C30&D$5:AB$5,Calculations!$C$33:$C$657,0),4),\"\")","v":{"v":0.8,"d":"80%"}},{"v":0.9,"d":"90%"},{"v":0.8,"d":"80%"},"","","","","","","","","","","","","","","","","","","","","","",{"$f":"IFERROR(AVERAGEIFS(tblClassScores[Score],tblClassScores[Class],Calculations!$C6,tblClassScores[Type],Calculations!AC$5)*Settings!E9,\"\")","v":0.08333333333333334},{"$f":"IFERROR(AVERAGEIFS(tblClassScores[Score],tblClassScores[Class],Calculations!$C6,tblClassScores[Type],Calculations!AD$5)*Settings!F9,\"\")","v":""},{"$f":"IFERROR(AVERAGEIFS(tblClassScores[Score],tblClassScores[Class],Calculations!$C6,tblClassScores[Type],Calculations!AE$5)*Settings!G9,\"\")","v":""},{"$f":"IFERROR(AVERAGEIFS(tblClassScores[Score],tblClassScores[Class],Calculations!$C6,tblClassScores[Type],Calculations!AF$5)*Settings!H9,\"\")","v":""},{"$f":"IFERROR(AVERAGEIFS(tblClassScores[Score],tblClassScores[Class],Calculations!$C6,tblClassScores[Type],Calculations!AG$5)*Settings!I9,\"\")","v":""},{"$f":"IFERROR(AVERAGEIFS(tblClassScores[Score],tblClassScores[Class],Calculations!$C6,tblClassScores[Type],Calculations!AH$5)*Settings!J9,\"\")","v":""},{"$f":"IFERROR(AVERAGEIFS(tblClassScores[Score],tblClassScores[Class],Calculations!$C6,tblClassScores[Type],Calculations!AI$5)*Settings!K9,\"\")","v":""},{"$f":"SUM(AC6:AI6)","v":0.08333333333333334},{"$f":"SUMIFS(Settings!E9:K9,Calculations!AC6:AI6,\">0\")","v":0.1},{"$f":"IFERROR(AJ6/AK6,\"\")","v":{"v":0.8333333333333334,"d":"83%"}},{"$f":"IFERROR(HLOOKUP(AL6,lstGPAMapping,3),\"\")","v":3},{"$f":"IFERROR(HLOOKUP(AL6,lstGPAMapping,2),\"\")","v":"B"}]
[null,null,{"$f":"IF(Settings!C10=\"\",\"\",Settings!C10)","v":"Theoretical Physics"},{"v":0.95,"d":"95%"},"","","","","","","","","","","","","","","","","","","","","","","","",{"$f":"IFERROR(AVERAGEIFS(tblClassScores[Score],tblClassScores[Class],Calculations!$C7,tblClassScores[Type],Calculations!AC$5)*Settings!E10,\"\")","v":0.1425},{"$f":"IFERROR(AVERAGEIFS(tblClassScores[Score],tblClassScores[Class],Calculations!$C7,tblClassScores[Type],Calculations!AD$5)*Settings!F10,\"\")","v":""},{"$f":"IFERROR(AVERAGEIFS(tblClassScores[Score],tblClassScores[Class],Calculations!$C7,tblClassScores[Type],Calculations!AE$5)*Settings!G10,\"\")","v":""},{"$f":"IFERROR(AVERAGEIFS(tblClassScores[Score],tblClassScores[Class],Calculations!$C7,tblClassScores[Type],Calculations!AF$5)*Settings!H10,\"\")","v":""},{"$f":"IFERROR(AVERAGEIFS(tblClassScores[Score],tblClassScores[Class],Calculations!$C7,tblClassScores[Type],Calculations!AG$5)*Settings!I10,\"\")","v":""},{"$f":"IFERROR(AVERAGEIFS(tblClassScores[Score],tblClassScores[Class],Calculations!$C7,tblClassScores[Type],Calculations!AH$5)*Settings!J10,\"\")","v":""},{"$f":"IFERROR(AVERAGEIFS(tblClassScores[Score],tblClassScores[Class],Calculations!$C7,tblClassScores[Type],Calculations!AI$5)*Settings!K10,\"\")","v":""},{"$f":"SUM(AC7:AI7)","v":0.1425},{"$f":"SUMIFS(Settings!E10:K10,Calculations!AC7:AI7,\">0\")","v":0.15},{"$f":"IFERROR(AJ7/AK7,\"\")","v":{"v":0.95,"d":"95%"}},4,"A"]
[null,null,{"$f":"IF(Settings!C11=\"\",\"\",Settings!C11)","v":"Mathematics 1"},{"v":0.8,"d":"80%"},{"v":0.8,"d":"80%"},"","","","","","","","","","","","","","","","","","","","","","","",{"$f":"IFERROR(AVERAGEIFS(tblClassScores[Score],tblClassScores[Class],Calculations!$C8,tblClassScores[Type],Calculations!AC$5)*Settings!E11,\"\")","v":0.08000000000000002},{"$f":"IFERROR(AVERAGEIFS(tblClassScores[Score],tblClassScores[Class],Calculations!$C8,tblClassScores[Type],Calculations!AD$5)*Settings!F11,\"\")","v":""},{"$f":"IFERROR(AVERAGEIFS(tblClassScores[Score],tblClassScores[Class],Calculations!$C8,tblClassScores[Type],Calculations!AE$5)*Settings!G11,\"\")","v":""},{"$f":"IFERROR(AVERAGEIFS(tblClassScores[Score],tblClassScores[Class],Calculations!$C8,tblClassScores[Type],Calculations!AF$5)*Settings!H11,\"\")","v":""},{"$f":"IFERROR(AVERAGEIFS(tblClassScores[Score],tblClassScores[Class],Calculations!$C8,tblClassScores[Type],Calculations!AG$5)*Settings!I11,\"\")","v":""},{"$f":"IFERROR(AVERAGEIFS(tblClassScores[Score],tblClassScores[Class],Calculations!$C8,tblClassScores[Type],Calculations!AH$5)*Settings!J11,\"\")","v":""},{"$f":"IFERROR(AVERAGEIFS(tblClassScores[Score],tblClassScores[Class],Calculations!$C8,tblClassScores[Type],Calculations!AI$5)*Settings!K11,\"\")","v":""},0.08000000000000002,{"$f":"SUMIFS(Settings!E11:K11,Calculations!AC8:AI8,\">0\")","v":0.1},{"v":0.8000000000000002,"d":"80%"},2.67,"B-"]
[null,null,{"$f":"IF(Settings!C12=\"\",\"\",Settings!C12)","v":"Mathematics 2"},{"v":0.85,"d":"85%"},{"v":0.95,"d":"95%"},"","","","","","","","","","","","","","","","","","","","","","","",{"$f":"IFERROR(AVERAGEIFS(tblClassScores[Score],tblClassScores[Class],Calculations!$C9,tblClassScores[Type],Calculations!AC$5)*Settings!E12,\"\")","v":0.1275},{"$f":"IFERROR(AVERAGEIFS(tblClassScores[Score],tblClassScores[Class],Calculations!$C9,tblClassScores[Type],Calculations!AD$5)*Settings!F12,\"\")","v":""},{"$f":"IFERROR(AVERAGEIFS(tblClassScores[Score],tblClassScores[Class],Calculations!$C9,tblClassScores[Type],Calculations!AE$5)*Settings!G12,\"\")","v":0.095},{"$f":"IFERROR(AVERAGEIFS(tblClassScores[Score],tblClassScores[Class],Calculations!$C9,tblClassScores[Type],Calculations!AF$5)*Settings!H12,\"\")","v":""},{"$f":"IFERROR(AVERAGEIFS(tblClassScores[Score],tblClassScores[Class],Calculations!$C9,tblClassScores[Type],Calculations!AG$5)*Settings!I12,\"\")","v":""},{"$f":"IFERROR(AVERAGEIFS(tblClassScores[Score],tblClassScores[Class],Calculations!$C9,tblClassScores[Type],Calculations!AH$5)*Settings!J12,\"\")","v":""},{"$f":"IFERROR(AVERAGEIFS(tblClassScores[Score],tblClassScores[Class],Calculations!$C9,tblClassScores[Type],Calculations!AI$5)*Settings!K12,\"\")","v":""},0.2225,{"$f":"SUMIFS(Settings!E12:K12,Calculations!AC9:AI9,\">0\")","v":0.25},{"v":0.89,"d":"89%"},3.33,"B+"]
[null,null,{"$f":"IF(Settings!C13=\"\",\"\",Settings!C13)","v":"Advanced Programming in Java"},{"v":0.75,"d":"75%"},"","","","","","","","","","","","","","","","","","","","","","","","",{"$f":"IFERROR(AVERAGEIFS(tblClassScores[Score],tblClassScores[Class],Calculations!$C10,tblClassScores[Type],Calculations!AC$5)*Settings!E13,\"\")","v":""},{"$f":"IFERROR(AVERAGEIFS(tblClassScores[Score],tblClassScores[Class],Calculations!$C10,tblClassScores[Type],Calculations!AD$5)*Settings!F13,\"\")","v":""},{"$f":"IFERROR(AVERAGEIFS(tblClassScores[Score],tblClassScores[Class],Calculations!$C10,tblClassScores[Type],Calculations!AE$5)*Settings!G13,\"\")","v":""},{"$f":"IFERROR(AVERAGEIFS(tblClassScores[Score],tblClassScores[Class],Calculations!$C10,tblClassScores[Type],Calculations!AF$5)*Settings!H13,\"\")","v":""},{"$f":"IFERROR(AVERAGEIFS(tblClassScores[Score],tblClassScores[Class],Calculations!$C10,tblClassScores[Type],Calculations!AG$5)*Settings!I13,\"\")","v":0.15000000000000002},{"$f":"IFERROR(AVERAGEIFS(tblClassScores[Score],tblClassScores[Class],Calculations!$C10,tblClassScores[Type],Calculations!AH$5)*Settings!J13,\"\")","v":""},{"$f":"IFERROR(AVERAGEIFS(tblClassScores[Score],tblClassScores[Class],Calculations!$C10,tblClassScores[Type],Calculations!AI$5)*Settings!K13,\"\")","v":""},0.15000000000000002,{"$f":"SUMIFS(Settings!E13:K13,Calculations!AC10:AI10,\">0\")","v":0.2},{"v":0.7500000000000001,"d":"75%"},2,"C"]
[null,null,{"$f":"IF(Settings!C14=\"\",\"\",Settings!C14)","v":"Spanish"},{"v":0.5,"d":"50%"},"","","","","","","","","","","","","","","","","","","","","","","","",{"$f":"IFERROR(AVERAGEIFS(tblClassScores[Score],tblClassScores[Class],Calculations!$C11,tblClassScores[Type],Calculations!AC$5)*Settings!E14,\"\")","v":0.05},{"$f":"IFERROR(AVERAGEIFS(tblClassScores[Score],tblClassScores[Class],Calculations!$C11,tblClassScores[Type],Calculations!AD$5)*Settings!F14,\"\")","v":""},{"$f":"IFERROR(AVERAGEIFS(tblClassScores[Score],tblClassScores[Class],Calculations!$C11,tblClassScores[Type],Calculations!AE$5)*Settings!G14,\"\")","v":""},{"$f":"IFERROR(AVERAGEIFS(tblClassScores[Score],tblClassScores[Class],Calculations!$C11,tblClassScores[Type],Calculations!AF$5)*Settings!H14,\"\")","v":""},{"$f":"IFERROR(AVERAGEIFS(tblClassScores[Score],tblClassScores[Class],Calculations!$C11,tblClassScores[Type],Calculations!AG$5)*Settings!I14,\"\")","v":""},{"$f":"IFERROR(AVERAGEIFS(tblClassScores[Score],tblClassScores[Class],Calculations!$C11,tblClassScores[Type],Calculations!AH$5)*Settings!J14,\"\")","v":""},{"$f":"IFERROR(AVERAGEIFS(tblClassScores[Score],tblClassScores[Class],Calculations!$C11,tblClassScores[Type],Calculations!AI$5)*Settings!K14,\"\")","v":""},0.05,{"$f":"SUMIFS(Settings!E14:K14,Calculations!AC11:AI11,\">0\")","v":0.1},{"v":0.5,"d":"50%"},0,"F"]
[null,null,{"$f":"IF(Settings!C15=\"\",\"\",Settings!C15)","v":"Composition"},{"v":0.95,"d":"95%"},"","","","","","","","","","","","","","","","","","","","","","","","",{"$f":"IFERROR(AVERAGEIFS(tblClassScores[Score],tblClassScores[Class],Calculations!$C12,tblClassScores[Type],Calculations!AC$5)*Settings!E15,\"\")","v":""},{"$f":"IFERROR(AVERAGEIFS(tblClassScores[Score],tblClassScores[Class],Calculations!$C12,tblClassScores[Type],Calculations!AD$5)*Settings!F15,\"\")","v":0.1425},{"$f":"IFERROR(AVERAGEIFS(tblClassScores[Score],tblClassScores[Class],Calculations!$C12,tblClassScores[Type],Calculations!AE$5)*Settings!G15,\"\")","v":""},{"$f":"IFERROR(AVERAGEIFS(tblClassScores[Score],tblClassScores[Class],Calculations!$C12,tblClassScores[Type],Calculations!AF$5)*Settings!H15,\"\")","v":""},{"$f":"IFERROR(AVERAGEIFS(tblClassScores[Score],tblClassScores[Class],Calculations!$C12,tblClassScores[Type],Calculations!AG$5)*Settings!I15,\"\")","v":""},{"$f":"IFERROR(AVERAGEIFS(tblClassScores[Score],tblClassScores[Class],Calculations!$C12,tblClassScores[Type],Calculations!AH$5)*Settings!J15,\"\")","v":""},{"$f":"IFERROR(AVERAGEIFS(tblClassScores[Score],tblClassScores[Class],Calculations!$C12,tblClassScores[Type],Calculations!AI$5)*Settings!K15,\"\")","v":""},0.1425,{"$f":"SUMIFS(Settings!E15:K15,Calculations!AC12:AI12,\">0\")","v":0.15},{"v":0.95,"d":"95%"},4,"A"]
[null,null,{"$f":"IF(Settings!C16=\"\",\"\",Settings!C16)","v":""},"","","","","","","","","","","","","","","","","","","","","","","","","",{"$f":"IFERROR(AVERAGEIFS(tblClassScores[Score],tblClassScores[Class],Calculations!$C13,tblClassScores[Type],Calculations!AC$5)*Settings!E16,\"\")","v":""},{"$f":"IFERROR(AVERAGEIFS(tblClassScores[Score],tblClassScores[Class],Calculations!$C13,tblClassScores[Type],Calculations!AD$5)*Settings!F16,\"\")","v":""},{"$f":"IFERROR(AVERAGEIFS(tblClassScores[Score],tblClassScores[Class],Calculations!$C13,tblClassScores[Type],Calculations!AE$5)*Settings!G16,\"\")","v":""},{"$f":"IFERROR(AVERAGEIFS(tblClassScores[Score],tblClassScores[Class],Calculations!$C13,tblClassScores[Type],Calculations!AF$5)*Settings!H16,\"\")","v":""},{"$f":"IFERROR(AVERAGEIFS(tblClassScores[Score],tblClassScores[Class],Calculations!$C13,tblClassScores[Type],Calculations!AG$5)*Settings!I16,\"\")","v":""},{"$f":"IFERROR(AVERAGEIFS(tblClassScores[Score],tblClassScores[Class],Calculations!$C13,tblClassScores[Type],Calculations!AH$5)*Settings!J16,\"\")","v":""},{"$f":"IFERROR(AVERAGEIFS(tblClassScores[Score],tblClassScores[Class],Calculations!$C13,tblClassScores[Type],Calculations!AI$5)*Settings!K16,\"\")","v":""},0,{"$f":"SUMIFS(Settings!E16:K16,Calculations!AC13:AI13,\">0\")","v":0},"","",""]
[null,null,{"$f":"IF(Settings!C17=\"\",\"\",Settings!C17)","v":""},"","","","","","","","","","","","","","","","","","","","","","","","","",{"$f":"IFERROR(AVERAGEIFS(tblClassScores[Score],tblClassScores[Class],Calculations!$C14,tblClassScores[Type],Calculations!AC$5)*Settings!E17,\"\")","v":""},{"$f":"IFERROR(AVERAGEIFS(tblClassScores[Score],tblClassScores[Class],Calculations!$C14,tblClassScores[Type],Calculations!AD$5)*Settings!F17,\"\")","v":""},{"$f":"IFERROR(AVERAGEIFS(tblClassScores[Score],tblClassScores[Class],Calculations!$C14,tblClassScores[Type],Calculations!AE$5)*Settings!G17,\"\")","v":""},{"$f":"IFERROR(AVERAGEIFS(tblClassScores[Score],tblClassScores[Class],Calculations!$C14,tblClassScores[Type],Calculations!AF$5)*Settings!H17,\"\")","v":""},{"$f":"IFERROR(AVERAGEIFS(tblClassScores[Score],tblClassScores[Class],Calculations!$C14,tblClassScores[Type],Calculations!AG$5)*Settings!I17,\"\")","v":""},{"$f":"IFERROR(AVERAGEIFS(tblClassScores[Score],tblClassScores[Class],Calculations!$C14,tblClassScores[Type],Calculations!AH$5)*Settings!J17,\"\")","v":""},{"$f":"IFERROR(AVERAGEIFS(tblClassScores[Score],tblClassScores[Class],Calculations!$C14,tblClassScores[Type],Calculations!AI$5)*Settings!K17,\"\")","v":""},0,{"$f":"SUMIFS(Settings!E17:K17,Calculations!AC14:AI14,\">0\")","v":0},"","",""]
[null,null,{"$f":"IF(Settings!C18=\"\",\"\",Settings!C18)","v":""},"","","","","","","","","","","","","","","","","","","","","","","","","",{"$f":"IFERROR(AVERAGEIFS(tblClassScores[Score],tblClassScores[Class],Calculations!$C15,tblClassScores[Type],Calculations!AC$5)*Settings!E18,\"\")","v":""},{"$f":"IFERROR(AVERAGEIFS(tblClassScores[Score],tblClassScores[Class],Calculations!$C15,tblClassScores[Type],Calculations!AD$5)*Settings!F18,\"\")","v":""},{"$f":"IFERROR(AVERAGEIFS(tblClassScores[Score],tblClassScores[Class],Calculations!$C15,tblClassScores[Type],Calculations!AE$5)*Settings!G18,\"\")","v":""},{"$f":"IFERROR(AVERAGEIFS(tblClassScores[Score],tblClassScores[Class],Calculations!$C15,tblClassScores[Type],Calculations!AF$5)*Settings!H18,\"\")","v":""},{"$f":"IFERROR(AVERAGEIFS(tblClassScores[Score],tblClassScores[Class],Calculations!$C15,tblClassScores[Type],Calculations!AG$5)*Settings!I18,\"\")","v":""},{"$f":"IFERROR(AVERAGEIFS(tblClassScores[Score],tblClassScores[Class],Calculations!$C15,tblClassScores[Type],Calculations!AH$5)*Settings!J18,\"\")","v":""},{"$f":"IFERROR(AVERAGEIFS(tblClassScores[Score],tblClassScores[Class],Calculations!$C15,tblClassScores[Type],Calculations!AI$5)*Settings!K18,\"\")","v":""},0,{"$f":"SUMIFS(Settings!E18:K18,Calculations!AC15:AI15,\">0\")","v":0},"","",""]
[null,null,{"$f":"IF(Settings!C19=\"\",\"\",Settings!C19)","v":""},"","","","","","","","","","","","","","","","","","","","","","","","","",{"$f":"IFERROR(AVERAGEIFS(tblClassScores[Score],tblClassScores[Class],Calculations!$C16,tblClassScores[Type],Calculations!AC$5)*Settings!E19,\"\")","v":""},{"$f":"IFERROR(AVERAGEIFS(tblClassScores[Score],tblClassScores[Class],Calculations!$C16,tblClassScores[Type],Calculations!AD$5)*Settings!F19,\"\")","v":""},{"$f":"IFERROR(AVERAGEIFS(tblClassScores[Score],tblClassScores[Class],Calculations!$C16,tblClassScores[Type],Calculations!AE$5)*Settings!G19,\"\")","v":""},{"$f":"IFERROR(AVERAGEIFS(tblClassScores[Score],tblClassScores[Class],Calculations!$C16,tblClassScores[Type],Calculations!AF$5)*Settings!H19,\"\")","v":""},{"$f":"IFERROR(AVERAGEIFS(tblClassScores[Score],tblClassScores[Class],Calculations!$C16,tblClassScores[Type],Calculations!AG$5)*Settings!I19,\"\")","v":""},{"$f":"IFERROR(AVERAGEIFS(tblClassScores[Score],tblClassScores[Class],Calculations!$C16,tblClassScores[Type],Calculations!AH$5)*Settings!J19,\"\")","v":""},{"$f":"IFERROR(AVERAGEIFS(tblClassScores[Score],tblClassScores[Class],Calculations!$C16,tblClassScores[Type],Calculations!AI$5)*Settings!K19,\"\")","v":""},0,{"$f":"SUMIFS(Settings!E19:K19,Calculations!AC16:AI16,\">0\")","v":0},"","",""]
[null,null,{"$f":"IF(Settings!C20=\"\",\"\",Settings!C20)","v":""},"","","","","","","","","","","","","","","","","","","","","","","","","",{"$f":"IFERROR(AVERAGEIFS(tblClassScores[Score],tblClassScores[Class],Calculations!$C17,tblClassScores[Type],Calculations!AC$5)*Settings!E20,\"\")","v":""},{"$f":"IFERROR(AVERAGEIFS(tblClassScores[Score],tblClassScores[Class],Calculations!$C17,tblClassScores[Type],Calculations!AD$5)*Settings!F20,\"\")","v":""},{"$f":"IFERROR(AVERAGEIFS(tblClassScores[Score],tblClassScores[Class],Calculations!$C17,tblClassScores[Type],Calculations!AE$5)*Settings!G20,\"\")","v":""},{"$f":"IFERROR(AVERAGEIFS(tblClassScores[Score],tblClassScores[Class],Calculations!$C17,tblClassScores[Type],Calculations!AF$5)*Settings!H20,\"\")","v":""},{"$f":"IFERROR(AVERAGEIFS(tblClassScores[Score],tblClassScores[Class],Calculations!$C17,tblClassScores[Type],Calculations!AG$5)*Settings!I20,\"\")","v":""},{"$f":"IFERROR(AVERAGEIFS(tblClassScores[Score],tblClassScores[Class],Calculations!$C17,tblClassScores[Type],Calculations!AH$5)*Settings!J20,\"\")","v":""},{"$f":"IFERROR(AVERAGEIFS(tblClassScores[Score],tblClassScores[Class],Calculations!$C17,tblClassScores[Type],Calculations!AI$5)*Settings!K20,\"\")","v":""},0,{"$f":"SUMIFS(Settings!E20:K20,Calculations!AC17:AI17,\">0\")","v":0},"","",""]
[null,null,{"$f":"IF(Settings!C21=\"\",\"\",Settings!C21)","v":""},"","","","","","","","","","","","","","","","","","","","","","","","","",{"$f":"IFERROR(AVERAGEIFS(tblClassScores[Score],tblClassScores[Class],Calculations!$C18,tblClassScores[Type],Calculations!AC$5)*Settings!E21,\"\")","v":""},{"$f":"IFERROR(AVERAGEIFS(tblClassScores[Score],tblClassScores[Class],Calculations!$C18,tblClassScores[Type],Calculations!AD$5)*Settings!F21,\"\")","v":""},{"$f":"IFERROR(AVERAGEIFS(tblClassScores[Score],tblClassScores[Class],Calculations!$C18,tblClassScores[Type],Calculations!AE$5)*Settings!G21,\"\")","v":""},{"$f":"IFERROR(AVERAGEIFS(tblClassScores[Score],tblClassScores[Class],Calculations!$C18,tblClassScores[Type],Calculations!AF$5)*Settings!H21,\"\")","v":""},{"$f":"IFERROR(AVERAGEIFS(tblClassScores[Score],tblClassScores[Class],Calculations!$C18,tblClassScores[Type],Calculations!AG$5)*Settings!I21,\"\")","v":""},{"$f":"IFERROR(AVERAGEIFS(tblClassScores[Score],tblClassScores[Class],Calculations!$C18,tblClassScores[Type],Calculations!AH$5)*Settings!J21,\"\")","v":""},{"$f":"IFERROR(AVERAGEIFS(tblClassScores[Score],tblClassScores[Class],Calculations!$C18,tblClassScores[Type],Calculations!AI$5)*Settings!K21,\"\")","v":""},0,{"$f":"SUMIFS(Settings!E21:K21,Calculations!AC18:AI18,\">0\")","v":0},"","",""]
[null,null,{"$f":"IF(Settings!C22=\"\",\"\",Settings!C22)","v":""},"","","","","","","","","","","","","","","","","","","","","","","","","",{"$f":"IFERROR(AVERAGEIFS(tblClassScores[Score],tblClassScores[Class],Calculations!$C19,tblClassScores[Type],Calculations!AC$5)*Settings!E22,\"\")","v":""},{"$f":"IFERROR(AVERAGEIFS(tblClassScores[Score],tblClassScores[Class],Calculations!$C19,tblClassScores[Type],Calculations!AD$5)*Settings!F22,\"\")","v":""},{"$f":"IFERROR(AVERAGEIFS(tblClassScores[Score],tblClassScores[Class],Calculations!$C19,tblClassScores[Type],Calculations!AE$5)*Settings!G22,\"\")","v":""},{"$f":"IFERROR(AVERAGEIFS(tblClassScores[Score],tblClassScores[Class],Calculations!$C19,tblClassScores[Type],Calculations!AF$5)*Settings!H22,\"\")","v":""},{"$f":"IFERROR(AVERAGEIFS(tblClassScores[Score],tblClassScores[Class],Calculations!$C19,tblClassScores[Type],Calculations!AG$5)*Settings!I22,\"\")","v":""},{"$f":"IFERROR(AVERAGEIFS(tblClassScores[Score],tblClassScores[Class],Calculations!$C19,tblClassScores[Type],Calculations!AH$5)*Settings!J22,\"\")","v":""},{"$f":"IFERROR(AVERAGEIFS(tblClassScores[Score],tblClassScores[Class],Calculations!$C19,tblClassScores[Type],Calculations!AI$5)*Settings!K22,\"\")","v":""},0,{"$f":"SUMIFS(Settings!E22:K22,Calculations!AC19:AI19,\">0\")","v":0},"","",""]
[null,null,{"$f":"IF(Settings!C23=\"\",\"\",Settings!C23)","v":""},"","","","","","","","","","","","","","","","","","","","","","","","","",{"$f":"IFERROR(AVERAGEIFS(tblClassScores[Score],tblClassScores[Class],Calculations!$C20,tblClassScores[Type],Calculations!AC$5)*Settings!E23,\"\")","v":""},{"$f":"IFERROR(AVERAGEIFS(tblClassScores[Score],tblClassScores[Class],Calculations!$C20,tblClassScores[Type],Calculations!AD$5)*Settings!F23,\"\")","v":""},{"$f":"IFERROR(AVERAGEIFS(tblClassScores[Score],tblClassScores[Class],Calculations!$C20,tblClassScores[Type],Calculations!AE$5)*Settings!G23,\"\")","v":""},{"$f":"IFERROR(AVERAGEIFS(tblClassScores[Score],tblClassScores[Class],Calculations!$C20,tblClassScores[Type],Calculations!AF$5)*Settings!H23,\"\")","v":""},{"$f":"IFERROR(AVERAGEIFS(tblClassScores[Score],tblClassScores[Class],Calculations!$C20,tblClassScores[Type],Calculations!AG$5)*Settings!I23,\"\")","v":""},{"$f":"IFERROR(AVERAGEIFS(tblClassScores[Score],tblClassScores[Class],Calculations!$C20,tblClassScores[Type],Calculations!AH$5)*Settings!J23,\"\")","v":""},{"$f":"IFERROR(AVERAGEIFS(tblClassScores[Score],tblClassScores[Class],Calculations!$C20,tblClassScores[Type],Calculations!AI$5)*Settings!K23,\"\")","v":""},0,{"$f":"SUMIFS(Settings!E23:K23,Calculations!AC20:AI20,\">0\")","v":0},"","",""]
[null,null,{"$f":"IF(Settings!C24=\"\",\"\",Settings!C24)","v":""},"","","","","","","","","","","","","","","","","","","","","","","","","",{"$f":"IFERROR(AVERAGEIFS(tblClassScores[Score],tblClassScores[Class],Calculations!$C21,tblClassScores[Type],Calculations!AC$5)*Settings!E24,\"\")","v":""},{"$f":"IFERROR(AVERAGEIFS(tblClassScores[Score],tblClassScores[Class],Calculations!$C21,tblClassScores[Type],Calculations!AD$5)*Settings!F24,\"\")","v":""},{"$f":"IFERROR(AVERAGEIFS(tblClassScores[Score],tblClassScores[Class],Calculations!$C21,tblClassScores[Type],Calculations!AE$5)*Settings!G24,\"\")","v":""},{"$f":"IFERROR(AVERAGEIFS(tblClassScores[Score],tblClassScores[Class],Calculations!$C21,tblClassScores[Type],Calculations!AF$5)*Settings!H24,\"\")","v":""},{"$f":"IFERROR(AVERAGEIFS(tblClassScores[Score],tblClassScores[Class],Calculations!$C21,tblClassScores[Type],Calculations!AG$5)*Settings!I24,\"\")","v":""},{"$f":"IFERROR(AVERAGEIFS(tblClassScores[Score],tblClassScores[Class],Calculations!$C21,tblClassScores[Type],Calculations!AH$5)*Settings!J24,\"\")","v":""},{"$f":"IFERROR(AVERAGEIFS(tblClassScores[Score],tblClassScores[Class],Calculations!$C21,tblClassScores[Type],Calculations!AI$5)*Settings!K24,\"\")","v":""},0,{"$f":"SUMIFS(Settings!E24:K24,Calculations!AC21:AI21,\">0\")","v":0},"","",""]
[null,null,{"$f":"IF(Settings!C25=\"\",\"\",Settings!C25)","v":""},"","","","","","","","","","","","","","","","","","","","","","","","","",{"$f":"IFERROR(AVERAGEIFS(tblClassScores[Score],tblClassScores[Class],Calculations!$C22,tblClassScores[Type],Calculations!AC$5)*Settings!E25,\"\")","v":""},{"$f":"IFERROR(AVERAGEIFS(tblClassScores[Score],tblClassScores[Class],Calculations!$C22,tblClassScores[Type],Calculations!AD$5)*Settings!F25,\"\")","v":""},{"$f":"IFERROR(AVERAGEIFS(tblClassScores[Score],tblClassScores[Class],Calculations!$C22,tblClassScores[Type],Calculations!AE$5)*Settings!G25,\"\")","v":""},{"$f":"IFERROR(AVERAGEIFS(tblClassScores[Score],tblClassScores[Class],Calculations!$C22,tblClassScores[Type],Calculations!AF$5)*Settings!H25,\"\")","v":""},{"$f":"IFERROR(AVERAGEIFS(tblClassScores[Score],tblClassScores[Class],Calculations!$C22,tblClassScores[Type],Calculations!AG$5)*Settings!I25,\"\")","v":""},{"$f":"IFERROR(AVERAGEIFS(tblClassScores[Score],tblClassScores[Class],Calculations!$C22,tblClassScores[Type],Calculations!AH$5)*Settings!J25,\"\")","v":""},{"$f":"IFERROR(AVERAGEIFS(tblClassScores[Score],tblClassScores[Class],Calculations!$C22,tblClassScores[Type],Calculations!AI$5)*Settings!K25,\"\")","v":""},0,{"$f":"SUMIFS(Settings!E25:K25,Calculations!AC22:AI22,\">0\")","v":0},"","",""]
[null,null,{"$f":"IF(Settings!C26=\"\",\"\",Settings!C26)","v":""},"","","","","","","","","","","","","","","","","","","","","","","","","",{"$f":"IFERROR(AVERAGEIFS(tblClassScores[Score],tblClassScores[Class],Calculations!$C23,tblClassScores[Type],Calculations!AC$5)*Settings!E26,\"\")","v":""},{"$f":"IFERROR(AVERAGEIFS(tblClassScores[Score],tblClassScores[Class],Calculations!$C23,tblClassScores[Type],Calculations!AD$5)*Settings!F26,\"\")","v":""},{"$f":"IFERROR(AVERAGEIFS(tblClassScores[Score],tblClassScores[Class],Calculations!$C23,tblClassScores[Type],Calculations!AE$5)*Settings!G26,\"\")","v":""},{"$f":"IFERROR(AVERAGEIFS(tblClassScores[Score],tblClassScores[Class],Calculations!$C23,tblClassScores[Type],Calculations!AF$5)*Settings!H26,\"\")","v":""},{"$f":"IFERROR(AVERAGEIFS(tblClassScores[Score],tblClassScores[Class],Calculations!$C23,tblClassScores[Type],Calculations!AG$5)*Settings!I26,\"\")","v":""},{"$f":"IFERROR(AVERAGEIFS(tblClassScores[Score],tblClassScores[Class],Calculations!$C23,tblClassScores[Type],Calculations!AH$5)*Settings!J26,\"\")","v":""},{"$f":"IFERROR(AVERAGEIFS(tblClassScores[Score],tblClassScores[Class],Calculations!$C23,tblClassScores[Type],Calculations!AI$5)*Settings!K26,\"\")","v":""},0,{"$f":"SUMIFS(Settings!E26:K26,Calculations!AC23:AI23,\">0\")","v":0},"","",""]
[null,null,{"$f":"IF(Settings!C27=\"\",\"\",Settings!C27)","v":""},"","","","","","","","","","","","","","","","","","","","","","","","","",{"$f":"IFERROR(AVERAGEIFS(tblClassScores[Score],tblClassScores[Class],Calculations!$C24,tblClassScores[Type],Calculations!AC$5)*Settings!E27,\"\")","v":""},{"$f":"IFERROR(AVERAGEIFS(tblClassScores[Score],tblClassScores[Class],Calculations!$C24,tblClassScores[Type],Calculations!AD$5)*Settings!F27,\"\")","v":""},{"$f":"IFERROR(AVERAGEIFS(tblClassScores[Score],tblClassScores[Class],Calculations!$C24,tblClassScores[Type],Calculations!AE$5)*Settings!G27,\"\")","v":""},{"$f":"IFERROR(AVERAGEIFS(tblClassScores[Score],tblClassScores[Class],Calculations!$C24,tblClassScores[Type],Calculations!AF$5)*Settings!H27,\"\")","v":""},{"$f":"IFERROR(AVERAGEIFS(tblClassScores[Score],tblClassScores[Class],Calculations!$C24,tblClassScores[Type],Calculations!AG$5)*Settings!I27,\"\")","v":""},{"$f":"IFERROR(AVERAGEIFS(tblClassScores[Score],tblClassScores[Class],Calculations!$C24,tblClassScores[Type],Calculations!AH$5)*Settings!J27,\"\")","v":""},{"$f":"IFERROR(AVERAGEIFS(tblClassScores[Score],tblClassScores[Class],Calculations!$C24,tblClassScores[Type],Calculations!AI$5)*Settings!K27,\"\")","v":""},0,{"$f":"SUMIFS(Settings!E27:K27,Calculations!AC24:AI24,\">0\")","v":0},"","",""]
[null,null,{"$f":"IF(Settings!C28=\"\",\"\",Settings!C28)","v":""},"","","","","","","","","","","","","","","","","","","","","","","","","",{"$f":"IFERROR(AVERAGEIFS(tblClassScores[Score],tblClassScores[Class],Calculations!$C25,tblClassScores[Type],Calculations!AC$5)*Settings!E28,\"\")","v":""},{"$f":"IFERROR(AVERAGEIFS(tblClassScores[Score],tblClassScores[Class],Calculations!$C25,tblClassScores[Type],Calculations!AD$5)*Settings!F28,\"\")","v":""},{"$f":"IFERROR(AVERAGEIFS(tblClassScores[Score],tblClassScores[Class],Calculations!$C25,tblClassScores[Type],Calculations!AE$5)*Settings!G28,\"\")","v":""},{"$f":"IFERROR(AVERAGEIFS(tblClassScores[Score],tblClassScores[Class],Calculations!$C25,tblClassScores[Type],Calculations!AF$5)*Settings!H28,\"\")","v":""},{"$f":"IFERROR(AVERAGEIFS(tblClassScores[Score],tblClassScores[Class],Calculations!$C25,tblClassScores[Type],Calculations!AG$5)*Settings!I28,\"\")","v":""},{"$f":"IFERROR(AVERAGEIFS(tblClassScores[Score],tblClassScores[Class],Calculations!$C25,tblClassScores[Type],Calculations!AH$5)*Settings!J28,\"\")","v":""},{"$f":"IFERROR(AVERAGEIFS(tblClassScores[Score],tblClassScores[Class],Calculations!$C25,tblClassScores[Type],Calculations!AI$5)*Settings!K28,\"\")","v":""},0,{"$f":"SUMIFS(Settings!E28:K28,Calculations!AC25:AI25,\">0\")","v":0},"","",""]
[null,null,{"$f":"IF(Settings!C29=\"\",\"\",Settings!C29)","v":""},"","","","","","","","","","","","","","","","","","","","","","","","","",{"$f":"IFERROR(AVERAGEIFS(tblClassScores[Score],tblClassScores[Class],Calculations!$C26,tblClassScores[Type],Calculations!AC$5)*Settings!E29,\"\")","v":""},{"$f":"IFERROR(AVERAGEIFS(tblClassScores[Score],tblClassScores[Class],Calculations!$C26,tblClassScores[Type],Calculations!AD$5)*Settings!F29,\"\")","v":""},{"$f":"IFERROR(AVERAGEIFS(tblClassScores[Score],tblClassScores[Class],Calculations!$C26,tblClassScores[Type],Calculations!AE$5)*Settings!G29,\"\")","v":""},{"$f":"IFERROR(AVERAGEIFS(tblClassScores[Score],tblClassScores[Class],Calculations!$C26,tblClassScores[Type],Calculations!AF$5)*Settings!H29,\"\")","v":""},{"$f":"IFERROR(AVERAGEIFS(tblClassScores[Score],tblClassScores[Class],Calculations!$C26,tblClassScores[Type],Calculations!AG$5)*Settings!I29,\"\")","v":""},{"$f":"IFERROR(AVERAGEIFS(tblClassScores[Score],tblClassScores[Class],Calculations!$C26,tblClassScores[Type],Calculations!AH$5)*Settings!J29,\"\")","v":""},{"$f":"IFERROR(AVERAGEIFS(tblClassScores[Score],tblClassScores[Class],Calculations!$C26,tblClassScores[Type],Calculations!AI$5)*Settings!K29,\"\")","v":""},0,{"$f":"SUMIFS(Settings!E29:K29,Calculations!AC26:AI26,\">0\")","v":0},"","",""]
[null,null,{"$f":"IF(Settings!C30=\"\",\"\",Settings!C30)","v":""},"","","","","","","","","","","","","","","","","","","","","","","","","",{"$f":"IFERROR(AVERAGEIFS(tblClassScores[Score],tblClassScores[Class],Calculations!$C27,tblClassScores[Type],Calculations!AC$5)*Settings!E30,\"\")","v":""},{"$f":"IFERROR(AVERAGEIFS(tblClassScores[Score],tblClassScores[Class],Calculations!$C27,tblClassScores[Type],Calculations!AD$5)*Settings!F30,\"\")","v":""},{"$f":"IFERROR(AVERAGEIFS(tblClassScores[Score],tblClassScores[Class],Calculations!$C27,tblClassScores[Type],Calculations!AE$5)*Settings!G30,\"\")","v":""},{"$f":"IFERROR(AVERAGEIFS(tblClassScores[Score],tblClassScores[Class],Calculations!$C27,tblClassScores[Type],Calculations!AF$5)*Settings!H30,\"\")","v":""},{"$f":"IFERROR(AVERAGEIFS(tblClassScores[Score],tblClassScores[Class],Calculations!$C27,tblClassScores[Type],Calculations!AG$5)*Settings!I30,\"\")","v":""},{"$f":"IFERROR(AVERAGEIFS(tblClassScores[Score],tblClassScores[Class],Calculations!$C27,tblClassScores[Type],Calculations!AH$5)*Settings!J30,\"\")","v":""},{"$f":"IFERROR(AVERAGEIFS(tblClassScores[Score],tblClassScores[Class],Calculations!$C27,tblClassScores[Type],Calculations!AI$5)*Settings!K30,\"\")","v":""},0,{"$f":"SUMIFS(Settings!E30:K30,Calculations!AC27:AI27,\">0\")","v":0},"","",""]
[null,null,{"$f":"IF(Settings!C31=\"\",\"\",Settings!C31)","v":""},"","","","","","","","","","","","","","","","","","","","","","","","","",{"$f":"IFERROR(AVERAGEIFS(tblClassScores[Score],tblClassScores[Class],Calculations!$C28,tblClassScores[Type],Calculations!AC$5)*Settings!E31,\"\")","v":""},{"$f":"IFERROR(AVERAGEIFS(tblClassScores[Score],tblClassScores[Class],Calculations!$C28,tblClassScores[Type],Calculations!AD$5)*Settings!F31,\"\")","v":""},{"$f":"IFERROR(AVERAGEIFS(tblClassScores[Score],tblClassScores[Class],Calculations!$C28,tblClassScores[Type],Calculations!AE$5)*Settings!G31,\"\")","v":""},{"$f":"IFERROR(AVERAGEIFS(tblClassScores[Score],tblClassScores[Class],Calculations!$C28,tblClassScores[Type],Calculations!AF$5)*Settings!H31,\"\")","v":""},{"$f":"IFERROR(AVERAGEIFS(tblClassScores[Score],tblClassScores[Class],Calculations!$C28,tblClassScores[Type],Calculations!AG$5)*Settings!I31,\"\")","v":""},{"$f":"IFERROR(AVERAGEIFS(tblClassScores[Score],tblClassScores[Class],Calculations!$C28,tblClassScores[Type],Calculations!AH$5)*Settings!J31,\"\")","v":""},{"$f":"IFERROR(AVERAGEIFS(tblClassScores[Score],tblClassScores[Class],Calculations!$C28,tblClassScores[Type],Calculations!AI$5)*Settings!K31,\"\")","v":""},0,{"$f":"SUMIFS(Settings!E31:K31,Calculations!AC28:AI28,\">0\")","v":0},"","",""]
[null,null,{"$f":"IF(Settings!C32=\"\",\"\",Settings!C32)","v":""},"","","","","","","","","","","","","","","","","","","","","","","","","",{"$f":"IFERROR(AVERAGEIFS(tblClassScores[Score],tblClassScores[Class],Calculations!$C29,tblClassScores[Type],Calculations!AC$5)*Settings!E32,\"\")","v":""},{"$f":"IFERROR(AVERAGEIFS(tblClassScores[Score],tblClassScores[Class],Calculations!$C29,tblClassScores[Type],Calculations!AD$5)*Settings!F32,\"\")","v":""},{"$f":"IFERROR(AVERAGEIFS(tblClassScores[Score],tblClassScores[Class],Calculations!$C29,tblClassScores[Type],Calculations!AE$5)*Settings!G32,\"\")","v":""},{"$f":"IFERROR(AVERAGEIFS(tblClassScores[Score],tblClassScores[Class],Calculations!$C29,tblClassScores[Type],Calculations!AF$5)*Settings!H32,\"\")","v":""},{"$f":"IFERROR(AVERAGEIFS(tblClassScores[Score],tblClassScores[Class],Calculations!$C29,tblClassScores[Type],Calculations!AG$5)*Settings!I32,\"\")","v":""},{"$f":"IFERROR(AVERAGEIFS(tblClassScores[Score],tblClassScores[Class],Calculations!$C29,tblClassScores[Type],Calculations!AH$5)*Settings!J32,\"\")","v":""},{"$f":"IFERROR(AVERAGEIFS(tblClassScores[Score],tblClassScores[Class],Calculations!$C29,tblClassScores[Type],Calculations!AI$5)*Settings!K32,\"\")","v":""},0,{"$f":"SUMIFS(Settings!E32:K32,Calculations!AC29:AI29,\">0\")","v":0},"","",""]
[null,null,{"$f":"IF(Settings!C33=\"\",\"\",Settings!C33)","v":""},"","","","","","","","","","","","","","","","","","","","","","","","","",{"$f":"IFERROR(AVERAGEIFS(tblClassScores[Score],tblClassScores[Class],Calculations!$C30,tblClassScores[Type],Calculations!AC$5)*Settings!E33,\"\")","v":""},{"$f":"IFERROR(AVERAGEIFS(tblClassScores[Score],tblClassScores[Class],Calculations!$C30,tblClassScores[Type],Calculations!AD$5)*Settings!F33,\"\")","v":""},{"$f":"IFERROR(AVERAGEIFS(tblClassScores[Score],tblClassScores[Class],Calculations!$C30,tblClassScores[Type],Calculations!AE$5)*Settings!G33,\"\")","v":""},{"$f":"IFERROR(AVERAGEIFS(tblClassScores[Score],tblClassScores[Class],Calculations!$C30,tblClassScores[Type],Calculations!AF$5)*Settings!H33,\"\")","v":""},{"$f":"IFERROR(AVERAGEIFS(tblClassScores[Score],tblClassScores[Class],Calculations!$C30,tblClassScores[Type],Calculations!AG$5)*Settings!I33,\"\")","v":""},{"$f":"IFERROR(AVERAGEIFS(tblClassScores[Score],tblClassScores[Class],Calculations!$C30,tblClassScores[Type],Calculations!AH$5)*Settings!J33,\"\")","v":""},{"$f":"IFERROR(AVERAGEIFS(tblClassScores[Score],tblClassScores[Class],Calculations!$C30,tblClassScores[Type],Calculations!AI$5)*Settings!K33,\"\")","v":""},0,{"$f":"SUMIFS(Settings!E33:K33,Calculations!AC30:AI30,\">0\")","v":0},"","",""]
[]
[]
[null,1,{"$f":"'Score Tracker'!C4&COUNTIF('Score Tracker'!$C$4:C4,'Score Tracker'!C4)","v":"Modern French1"}]
[null,2,{"$f":"'Score Tracker'!C5&COUNTIF('Score Tracker'!$C$4:C5,'Score Tracker'!C5)","v":"Advanced Programming in Java1"}]
[null,3,{"$f":"'Score Tracker'!C6&COUNTIF('Score Tracker'!$C$4:C6,'Score Tracker'!C6)","v":"Spanish1"}]
[null,4,{"$f":"'Score Tracker'!C7&COUNTIF('Score Tracker'!$C$4:C7,'Score Tracker'!C7)","v":"Theoretical Physics1"}]
[null,5,{"$f":"'Score Tracker'!C8&COUNTIF('Score Tracker'!$C$4:C8,'Score Tracker'!C8)","v":"Modern French2"}]
[null,6,{"$f":"'Score Tracker'!C9&COUNTIF('Score Tracker'!$C$4:C9,'Score Tracker'!C9)","v":"Modern French3"}]
[null,7,{"$f":"'Score Tracker'!C10&COUNTIF('Score Tracker'!$C$4:C10,'Score Tracker'!C10)","v":"Composition1"}]
[null,8,{"$f":"'Score Tracker'!C11&COUNTIF('Score Tracker'!$C$4:C11,'Score Tracker'!C11)","v":"Mathematics 11"}]
[null,9,{"$f":"'Score Tracker'!C12&COUNTIF('Score Tracker'!$C$4:C12,'Score Tracker'!C12)","v":"Mathematics 21"}]
[null,10,{"$f":"'Score Tracker'!C13&COUNTIF('Score Tracker'!$C$4:C14,'Score Tracker'!C13)","v":"Mathematics 12"}]
[null,11,{"$f":"'Score Tracker'!C14&COUNTIF('Score Tracker'!$C$4:C14,'Score Tracker'!C14)","v":"Mathematics 22"}]
[null,12,{"$f":"'Score Tracker'!C15&COUNTIF('Score Tracker'!$C$4:C15,'Score Tracker'!C15)","v":"0"}]
[null,13,{"$f":"'Score Tracker'!C16&COUNTIF('Score Tracker'!$C$4:C16,'Score Tracker'!C16)","v":"0"}]
[null,14,{"$f":"'Score Tracker'!C17&COUNTIF('Score Tracker'!$C$4:C17,'Score Tracker'!C17)","v":"0"}]
[null,15,{"$f":"'Score Tracker'!C18&COUNTIF('Score Tracker'!$C$4:C18,'Score Tracker'!C18)","v":"0"}]
[null,16,{"$f":"'Score Tracker'!C19&COUNTIF('Score Tracker'!$C$4:C19,'Score Tracker'!C19)","v":"0"}]
[null,17,{"$f":"'Score Tracker'!C20&COUNTIF('Score Tracker'!$C$4:C20,'Score Tracker'!C20)","v":"0"}]
[null,18,{"$f":"'Score Tracker'!C21&COUNTIF('Score Tracker'!$C$4:C21,'Score Tracker'!C21)","v":"0"}]
[null,19,{"$f":"'Score Tracker'!C22&COUNTIF('Score Tracker'!$C$4:C22,'Score Tracker'!C22)","v":"0"}]
[null,20,{"$f":"'Score Tracker'!C23&COUNTIF('Score Tracker'!$C$4:C23,'Score Tracker'!C23)","v":"0"}]
[null,21,{"$f":"'Score Tracker'!C24&COUNTIF('Score Tracker'!$C$4:C24,'Score Tracker'!C24)","v":"0"}]
[null,22,{"$f":"'Score Tracker'!C25&COUNTIF('Score Tracker'!$C$4:C25,'Score Tracker'!C25)","v":"0"}]
[null,23,{"$f":"'Score Tracker'!C26&COUNTIF('Score Tracker'!$C$4:C26,'Score Tracker'!C26)","v":"0"}]
[null,24,{"$f":"'Score Tracker'!C27&COUNTIF('Score Tracker'!$C$4:C27,'Score Tracker'!C27)","v":"0"}]
[null,25,{"$f":"'Score Tracker'!C28&COUNTIF('Score Tracker'!$C$4:C28,'Score Tracker'!C28)","v":"0"}]
[null,26,{"$f":"'Score Tracker'!C29&COUNTIF('Score Tracker'!$C$4:C29,'Score Tracker'!C29)","v":"0"}]
[null,27,{"$f":"'Score Tracker'!C30&COUNTIF('Score Tracker'!$C$4:C30,'Score Tracker'!C30)","v":"0"}]
[null,28,{"$f":"'Score Tracker'!C31&COUNTIF('Score Tracker'!$C$4:C31,'Score Tracker'!C31)","v":"0"}]
[null,29,{"$f":"'Score Tracker'!C32&COUNTIF('Score Tracker'!$C$4:C32,'Score Tracker'!C32)","v":"0"}]
[null,30,{"$f":"'Score Tracker'!C33&COUNTIF('Score Tracker'!$C$4:C33,'Score Tracker'!C33)","v":"0"}]
[null,31,{"$f":"'Score Tracker'!C34&COUNTIF('Score Tracker'!$C$4:C34,'Score Tracker'!C34)","v":"0"}]
[null,32,{"$f":"'Score Tracker'!C35&COUNTIF('Score Tracker'!$C$4:C35,'Score Tracker'!C35)","v":"0"}]
[null,33,{"$f":"'Score Tracker'!C36&COUNTIF('Score Tracker'!$C$4:C36,'Score Tracker'!C36)","v":"0"}]
[null,34,{"$f":"'Score Tracker'!C37&COUNTIF('Score Tracker'!$C$4:C37,'Score Tracker'!C37)","v":"0"}]
[null,35,{"$f":"'Score Tracker'!C38&COUNTIF('Score Tracker'!$C$4:C38,'Score Tracker'!C38)","v":"0"}]
[null,36,{"$f":"'Score Tracker'!C39&COUNTIF('Score Tracker'!$C$4:C39,'Score Tracker'!C39)","v":"0"}]
[null,37,{"$f":"'Score Tracker'!C40&COUNTIF('Score Tracker'!$C$4:C40,'Score Tracker'!C40)","v":"0"}]
[null,38,{"$f":"'Score Tracker'!C41&COUNTIF('Score Tracker'!$C$4:C41,'Score Tracker'!C41)","v":"0"}]
[null,39,{"$f":"'Score Tracker'!C42&COUNTIF('Score Tracker'!$C$4:C42,'Score Tracker'!C42)","v":"0"}]
[null,40,{"$f":"'Score Tracker'!C43&COUNTIF('Score Tracker'!$C$4:C43,'Score Tracker'!C43)","v":"0"}]
[null,41,{"$f":"'Score Tracker'!C44&COUNTIF('Score Tracker'!$C$4:C44,'Score Tracker'!C44)","v":"0"}]
[null,42,{"$f":"'Score Tracker'!C45&COUNTIF('Score Tracker'!$C$4:C45,'Score Tracker'!C45)","v":"0"}]
[null,43,{"$f":"'Score Tracker'!C46&COUNTIF('Score Tracker'!$C$4:C46,'Score Tracker'!C46)","v":"0"}]
[null,44,{"$f":"'Score Tracker'!C47&COUNTIF('Score Tracker'!$C$4:C47,'Score Tracker'!C47)","v":"0"}]
[null,45,{"$f":"'Score Tracker'!C48&COUNTIF('Score Tracker'!$C$4:C48,'Score Tracker'!C48)","v":"0"}]
[null,46,{"$f":"'Score Tracker'!C49&COUNTIF('Score Tracker'!$C$4:C49,'Score Tracker'!C49)","v":"0"}]
[null,47,{"$f":"'Score Tracker'!C50&COUNTIF('Score Tracker'!$C$4:C50,'Score Tracker'!C50)","v":"0"}]
[null,48,{"$f":"'Score Tracker'!C51&COUNTIF('Score Tracker'!$C$4:C51,'Score Tracker'!C51)","v":"0"}]
[null,49,{"$f":"'Score Tracker'!C52&COUNTIF('Score Tracker'!$C$4:C52,'Score Tracker'!C52)","v":"0"}]
[null,50,{"$f":"'Score Tracker'!C53&COUNTIF('Score Tracker'!$C$4:C53,'Score Tracker'!C53)","v":"0"}]
[null,51,{"$f":"'Score Tracker'!C54&COUNTIF('Score Tracker'!$C$4:C54,'Score Tracker'!C54)","v":"0"}]
[null,52,{"$f":"'Score Tracker'!C55&COUNTIF('Score Tracker'!$C$4:C55,'Score Tracker'!C55)","v":"0"}]
[null,53,{"$f":"'Score Tracker'!C56&COUNTIF('Score Tracker'!$C$4:C56,'Score Tracker'!C56)","v":"0"}]
[null,54,{"$f":"'Score Tracker'!C57&COUNTIF('Score Tracker'!$C$4:C57,'Score Tracker'!C57)","v":"0"}]
[null,55,{"$f":"'Score Tracker'!C58&COUNTIF('Score Tracker'!$C$4:C58,'Score Tracker'!C58)","v":"0"}]
[null,56,{"$f":"'Score Tracker'!C59&COUNTIF('Score Tracker'!$C$4:C59,'Score Tracker'!C59)","v":"0"}]
[null,57,{"$f":"'Score Tracker'!C60&COUNTIF('Score Tracker'!$C$4:C60,'Score Tracker'!C60)","v":"0"}]
[null,58,{"$f":"'Score Tracker'!C61&COUNTIF('Score Tracker'!$C$4:C61,'Score Tracker'!C61)","v":"0"}]
[null,59,{"$f":"'Score Tracker'!C62&COUNTIF('Score Tracker'!$C$4:C62,'Score Tracker'!C62)","v":"0"}]
[null,60,{"$f":"'Score Tracker'!C63&COUNTIF('Score Tracker'!$C$4:C63,'Score Tracker'!C63)","v":"0"}]
[null,61,{"$f":"'Score Tracker'!C64&COUNTIF('Score Tracker'!$C$4:C64,'Score Tracker'!C64)","v":"0"}]
[null,62,{"$f":"'Score Tracker'!C65&COUNTIF('Score Tracker'!$C$4:C65,'Score Tracker'!C65)","v":"0"}]
[null,63,{"$f":"'Score Tracker'!C66&COUNTIF('Score Tracker'!$C$4:C66,'Score Tracker'!C66)","v":"0"}]
[null,64,{"$f":"'Score Tracker'!C67&COUNTIF('Score Tracker'!$C$4:C67,'Score Tracker'!C67)","v":"0"}]
[null,65,{"$f":"'Score Tracker'!C68&COUNTIF('Score Tracker'!$C$4:C68,'Score Tracker'!C68)","v":"0"}]
[null,66,{"$f":"'Score Tracker'!C69&COUNTIF('Score Tracker'!$C$4:C69,'Score Tracker'!C69)","v":"0"}]
[null,67,{"$f":"'Score Tracker'!C70&COUNTIF('Score Tracker'!$C$4:C70,'Score Tracker'!C70)","v":"0"}]
[null,68,{"$f":"'Score Tracker'!C71&COUNTIF('Score Tracker'!$C$4:C71,'Score Tracker'!C71)","v":"0"}]
[null,69,{"$f":"'Score Tracker'!C72&COUNTIF('Score Tracker'!$C$4:C72,'Score Tracker'!C72)","v":"0"}]
[null,70,{"$f":"'Score Tracker'!C73&COUNTIF('Score Tracker'!$C$4:C73,'Score Tracker'!C73)","v":"0"}]
[null,71,{"$f":"'Score Tracker'!C74&COUNTIF('Score Tracker'!$C$4:C74,'Score Tracker'!C74)","v":"0"}]
[null,72,{"$f":"'Score Tracker'!C75&COUNTIF('Score Tracker'!$C$4:C75,'Score Tracker'!C75)","v":"0"}]
[null,73,{"$f":"'Score Tracker'!C76&COUNTIF('Score Tracker'!$C$4:C76,'Score Tracker'!C76)","v":"0"}]
[null,74,{"$f":"'Score Tracker'!C77&COUNTIF('Score Tracker'!$C$4:C77,'Score Tracker'!C77)","v":"0"}]
[null,75,{"$f":"'Score Tracker'!C78&COUNTIF('Score Tracker'!$C$4:C78,'Score Tracker'!C78)","v":"0"}]
[null,76,{"$f":"'Score Tracker'!C79&COUNTIF('Score Tracker'!$C$4:C79,'Score Tracker'!C79)","v":"0"}]
[null,77,{"$f":"'Score Tracker'!C80&COUNTIF('Score Tracker'!$C$4:C80,'Score Tracker'!C80)","v":"0"}]
[null,78,{"$f":"'Score Tracker'!C81&COUNTIF('Score Tracker'!$C$4:C81,'Score Tracker'!C81)","v":"0"}]
[null,79,{"$f":"'Score Tracker'!C82&COUNTIF('Score Tracker'!$C$4:C82,'Score Tracker'!C82)","v":"0"}]
[null,80,{"$f":"'Score Tracker'!C83&COUNTIF('Score Tracker'!$C$4:C83,'Score Tracker'!C83)","v":"0"}]
[null,81,{"$f":"'Score Tracker'!C84&COUNTIF('Score Tracker'!$C$4:C84,'Score Tracker'!C84)","v":"0"}]
[null,82,{"$f":"'Score Tracker'!C85&COUNTIF('Score Tracker'!$C$4:C85,'Score Tracker'!C85)","v":"0"}]
[null,83,{"$f":"'Score Tracker'!C86&COUNTIF('Score Tracker'!$C$4:C86,'Score Tracker'!C86)","v":"0"}]
[null,84,{"$f":"'Score Tracker'!C87&COUNTIF('Score Tracker'!$C$4:C87,'Score Tracker'!C87)","v":"0"}]
[null,85,{"$f":"'Score Tracker'!C88&COUNTIF('Score Tracker'!$C$4:C88,'Score Tracker'!C88)","v":"0"}]
[null,86,{"$f":"'Score Tracker'!C89&COUNTIF('Score Tracker'!$C$4:C89,'Score Tracker'!C89)","v":"0"}]
[null,87,{"$f":"'Score Tracker'!C90&COUNTIF('Score Tracker'!$C$4:C90,'Score Tracker'!C90)","v":"0"}]
[null,88,{"$f":"'Score Tracker'!C91&COUNTIF('Score Tracker'!$C$4:C91,'Score Tracker'!C91)","v":"0"}]
[null,89,{"$f":"'Score Tracker'!C92&COUNTIF('Score Tracker'!$C$4:C92,'Score Tracker'!C92)","v":"0"}]
[null,90,{"$f":"'Score Tracker'!C93&COUNTIF('Score Tracker'!$C$4:C93,'Score Tracker'!C93)","v":"0"}]
[null,91,{"$f":"'Score Tracker'!C94&COUNTIF('Score Tracker'!$C$4:C94,'Score Tracker'!C94)","v":"0"}]
[null,92,{"$f":"'Score Tracker'!C95&COUNTIF('Score Tracker'!$C$4:C95,'Score Tracker'!C95)","v":"0"}]
[null,93,{"$f":"'Score Tracker'!C96&COUNTIF('Score Tracker'!$C$4:C96,'Score Tracker'!C96)","v":"0"}]
[null,94,{"$f":"'Score Tracker'!C97&COUNTIF('Score Tracker'!$C$4:C97,'Score Tracker'!C97)","v":"0"}]
[null,95,{"$f":"'Score Tracker'!C98&COUNTIF('Score Tracker'!$C$4:C98,'Score Tracker'!C98)","v":"0"}]
[null,96,{"$f":"'Score Tracker'!C99&COUNTIF('Score Tracker'!$C$4:C99,'Score Tracker'!C99)","v":"0"}]
[null,97,{"$f":"'Score Tracker'!C100&COUNTIF('Score Tracker'!$C$4:C100,'Score Tracker'!C100)","v":"0"}]
[null,98,{"$f":"'Score Tracker'!C101&COUNTIF('Score Tracker'!$C$4:C101,'Score Tracker'!C101)","v":"0"}]
[null,99,{"$f":"'Score Tracker'!C102&COUNTIF('Score Tracker'!$C$4:C102,'Score Tracker'!C102)","v":"0"}]
[null,100,{"$f":"'Score Tracker'!C103&COUNTIF('Score Tracker'!$C$4:C103,'Score Tracker'!C103)","v":"0"}]
[null,101,{"$f":"'Score Tracker'!C104&COUNTIF('Score Tracker'!$C$4:C104,'Score Tracker'!C104)","v":"0"}]
[null,102,{"$f":"'Score Tracker'!C105&COUNTIF('Score Tracker'!$C$4:C105,'Score Tracker'!C105)","v":"0"}]
[null,103,{"$f":"'Score Tracker'!C106&COUNTIF('Score Tracker'!$C$4:C106,'Score Tracker'!C106)","v":"0"}]
[null,104,{"$f":"'Score Tracker'!C107&COUNTIF('Score Tracker'!$C$4:C107,'Score Tracker'!C107)","v":"0"}]
[null,105,{"$f":"'Score Tracker'!C108&COUNTIF('Score Tracker'!$C$4:C108,'Score Tracker'!C108)","v":"0"}]
[null,106,{"$f":"'Score Tracker'!C109&COUNTIF('Score Tracker'!$C$4:C109,'Score Tracker'!C109)","v":"0"}]
[null,107,{"$f":"'Score Tracker'!C110&COUNTIF('Score Tracker'!$C$4:C110,'Score Tracker'!C110)","v":"0"}]
[null,108,{"$f":"'Score Tracker'!C111&COUNTIF('Score Tracker'!$C$4:C111,'Score Tracker'!C111)","v":"0"}]
[null,109,{"$f":"'Score Tracker'!C112&COUNTIF('Score Tracker'!$C$4:C112,'Score Tracker'!C112)","v":"0"}]
[null,110,{"$f":"'Score Tracker'!C113&COUNTIF('Score Tracker'!$C$4:C113,'Score Tracker'!C113)","v":"0"}]
[null,111,{"$f":"'Score Tracker'!C114&COUNTIF('Score Tracker'!$C$4:C114,'Score Tracker'!C114)","v":"0"}]
[null,112,{"$f":"'Score Tracker'!C115&COUNTIF('Score Tracker'!$C$4:C115,'Score Tracker'!C115)","v":"0"}]
[null,113,{"$f":"'Score Tracker'!C116&COUNTIF('Score Tracker'!$C$4:C116,'Score Tracker'!C116)","v":"0"}]
[null,114,{"$f":"'Score Tracker'!C117&COUNTIF('Score Tracker'!$C$4:C117,'Score Tracker'!C117)","v":"0"}]
[null,115,{"$f":"'Score Tracker'!C118&COUNTIF('Score Tracker'!$C$4:C118,'Score Tracker'!C118)","v":"0"}]
[null,116,{"$f":"'Score Tracker'!C119&COUNTIF('Score Tracker'!$C$4:C119,'Score Tracker'!C119)","v":"0"}]
[null,117,{"$f":"'Score Tracker'!C120&COUNTIF('Score Tracker'!$C$4:C120,'Score Tracker'!C120)","v":"0"}]
[null,118,{"$f":"'Score Tracker'!C121&COUNTIF('Score Tracker'!$C$4:C121,'Score Tracker'!C121)","v":"0"}]
[null,119,{"$f":"'Score Tracker'!C122&COUNTIF('Score Tracker'!$C$4:C122,'Score Tracker'!C122)","v":"0"}]
[null,120,{"$f":"'Score Tracker'!C123&COUNTIF('Score Tracker'!$C$4:C123,'Score Tracker'!C123)","v":"0"}]
[null,121,{"$f":"'Score Tracker'!C124&COUNTIF('Score Tracker'!$C$4:C124,'Score Tracker'!C124)","v":"0"}]
[null,122,{"$f":"'Score Tracker'!C125&COUNTIF('Score Tracker'!$C$4:C125,'Score Tracker'!C125)","v":"0"}]
[null,123,{"$f":"'Score Tracker'!C126&COUNTIF('Score Tracker'!$C$4:C126,'Score Tracker'!C126)","v":"0"}]
[null,124,{"$f":"'Score Tracker'!C127&COUNTIF('Score Tracker'!$C$4:C127,'Score Tracker'!C127)","v":"0"}]
[null,125,{"$f":"'Score Tracker'!C128&COUNTIF('Score Tracker'!$C$4:C128,'Score Tracker'!C128)","v":"0"}]
[null,126,{"$f":"'Score Tracker'!C129&COUNTIF('Score Tracker'!$C$4:C129,'Score Tracker'!C129)","v":"0"}]
[null,127,{"$f":"'Score Tracker'!C130&COUNTIF('Score Tracker'!$C$4:C130,'Score Tracker'!C130)","v":"0"}]
[null,128,{"$f":"'Score Tracker'!C131&COUNTIF('Score Tracker'!$C$4:C131,'Score Tracker'!C131)","v":"0"}]
[null,129,{"$f":"'Score Tracker'!C132&COUNTIF('Score Tracker'!$C$4:C132,'Score Tracker'!C132)","v":"0"}]
[null,130,{"$f":"'Score Tracker'!C133&COUNTIF('Score Tracker'!$C$4:C133,'Score Tracker'!C133)","v":"0"}]
[null,131,{"$f":"'Score Tracker'!C134&COUNTIF('Score Tracker'!$C$4:C134,'Score Tracker'!C134)","v":"0"}]
[null,132,{"$f":"'Score Tracker'!C135&COUNTIF('Score Tracker'!$C$4:C135,'Score Tracker'!C135)","v":"0"}]
[null,133,{"$f":"'Score Tracker'!C136&COUNTIF('Score Tracker'!$C$4:C136,'Score Tracker'!C136)","v":"0"}]
[null,134,{"$f":"'Score Tracker'!C137&COUNTIF('Score Tracker'!$C$4:C137,'Score Tracker'!C137)","v":"0"}]
[null,135,{"$f":"'Score Tracker'!C138&COUNTIF('Score Tracker'!$C$4:C138,'Score Tracker'!C138)","v":"0"}]
[null,136,{"$f":"'Score Tracker'!C139&COUNTIF('Score Tracker'!$C$4:C139,'Score Tracker'!C139)","v":"0"}]
[null,137,{"$f":"'Score Tracker'!C140&COUNTIF('Score Tracker'!$C$4:C140,'Score Tracker'!C140)","v":"0"}]
[null,138,{"$f":"'Score Tracker'!C141&COUNTIF('Score Tracker'!$C$4:C141,'Score Tracker'!C141)","v":"0"}]
[null,139,{"$f":"'Score Tracker'!C142&COUNTIF('Score Tracker'!$C$4:C142,'Score Tracker'!C142)","v":"0"}]
[null,140,{"$f":"'Score Tracker'!C143&COUNTIF('Score Tracker'!$C$4:C143,'Score Tracker'!C143)","v":"0"}]
[null,141,{"$f":"'Score Tracker'!C144&COUNTIF('Score Tracker'!$C$4:C144,'Score Tracker'!C144)","v":"0"}]
[null,142,{"$f":"'Score Tracker'!C145&COUNTIF('Score Tracker'!$C$4:C145,'Score Tracker'!C145)","v":"0"}]
[null,143,{"$f":"'Score Tracker'!C146&COUNTIF('Score Tracker'!$C$4:C146,'Score Tracker'!C146)","v":"0"}]
[null,144,{"$f":"'Score Tracker'!C147&COUNTIF('Score Tracker'!$C$4:C147,'Score Tracker'!C147)","v":"0"}]
[null,145,{"$f":"'Score Tracker'!C148&COUNTIF('Score Tracker'!$C$4:C148,'Score Tracker'!C148)","v":"0"}]
[null,146,{"$f":"'Score Tracker'!C149&COUNTIF('Score Tracker'!$C$4:C149,'Score Tracker'!C149)","v":"0"}]
[null,147,{"$f":"'Score Tracker'!C150&COUNTIF('Score Tracker'!$C$4:C150,'Score Tracker'!C150)","v":"0"}]
[null,148,{"$f":"'Score Tracker'!C151&COUNTIF('Score Tracker'!$C$4:C151,'Score Tracker'!C151)","v":"0"}]
[null,149,{"$f":"'Score Tracker'!C152&COUNTIF('Score Tracker'!$C$4:C152,'Score Tracker'!C152)","v":"0"}]
[null,150,{"$f":"'Score Tracker'!C153&COUNTIF('Score Tracker'!$C$4:C153,'Score Tracker'!C153)","v":"0"}]
[null,151,{"$f":"'Score Tracker'!C154&COUNTIF('Score Tracker'!$C$4:C154,'Score Tracker'!C154)","v":"0"}]
[null,152,{"$f":"'Score Tracker'!C155&COUNTIF('Score Tracker'!$C$4:C155,'Score Tracker'!C155)","v":"0"}]
[null,153,{"$f":"'Score Tracker'!C156&COUNTIF('Score Tracker'!$C$4:C156,'Score Tracker'!C156)","v":"0"}]
[null,154,{"$f":"'Score Tracker'!C157&COUNTIF('Score Tracker'!$C$4:C157,'Score Tracker'!C157)","v":"0"}]
[null,155,{"$f":"'Score Tracker'!C158&COUNTIF('Score Tracker'!$C$4:C158,'Score Tracker'!C158)","v":"0"}]
[null,156,{"$f":"'Score Tracker'!C159&COUNTIF('Score Tracker'!$C$4:C159,'Score Tracker'!C159)","v":"0"}]
[null,157,{"$f":"'Score Tracker'!C160&COUNTIF('Score Tracker'!$C$4:C160,'Score Tracker'!C160)","v":"0"}]
[null,158,{"$f":"'Score Tracker'!C161&COUNTIF('Score Tracker'!$C$4:C161,'Score Tracker'!C161)","v":"0"}]
[null,159,{"$f":"'Score Tracker'!C162&COUNTIF('Score Tracker'!$C$4:C162,'Score Tracker'!C162)","v":"0"}]
[null,160,{"$f":"'Score Tracker'!C163&COUNTIF('Score Tracker'!$C$4:C163,'Score Tracker'!C163)","v":"0"}]
[null,161,{"$f":"'Score Tracker'!C164&COUNTIF('Score Tracker'!$C$4:C164,'Score Tracker'!C164)","v":"0"}]
[null,162,{"$f":"'Score Tracker'!C165&COUNTIF('Score Tracker'!$C$4:C165,'Score Tracker'!C165)","v":"0"}]
[null,163,{"$f":"'Score Tracker'!C166&COUNTIF('Score Tracker'!$C$4:C166,'Score Tracker'!C166)","v":"0"}]
[null,164,{"$f":"'Score Tracker'!C167&COUNTIF('Score Tracker'!$C$4:C167,'Score Tracker'!C167)","v":"0"}]
[null,165,{"$f":"'Score Tracker'!C168&COUNTIF('Score Tracker'!$C$4:C168,'Score Tracker'!C168)","v":"0"}]
[null,166,{"$f":"'Score Tracker'!C169&COUNTIF('Score Tracker'!$C$4:C169,'Score Tracker'!C169)","v":"0"}]
[null,167,{"$f":"'Score Tracker'!C170&COUNTIF('Score Tracker'!$C$4:C170,'Score Tracker'!C170)","v":"0"}]
[null,168,{"$f":"'Score Tracker'!C171&COUNTIF('Score Tracker'!$C$4:C171,'Score Tracker'!C171)","v":"0"}]
[null,169,{"$f":"'Score Tracker'!C172&COUNTIF('Score Tracker'!$C$4:C172,'Score Tracker'!C172)","v":"0"}]
[null,170,{"$f":"'Score Tracker'!C173&COUNTIF('Score Tracker'!$C$4:C173,'Score Tracker'!C173)","v":"0"}]
[null,171,{"$f":"'Score Tracker'!C174&COUNTIF('Score Tracker'!$C$4:C174,'Score Tracker'!C174)","v":"0"}]
[null,172,{"$f":"'Score Tracker'!C175&COUNTIF('Score Tracker'!$C$4:C175,'Score Tracker'!C175)","v":"0"}]
[null,173,{"$f":"'Score Tracker'!C176&COUNTIF('Score Tracker'!$C$4:C176,'Score Tracker'!C176)","v":"0"}]
[null,174,{"$f":"'Score Tracker'!C177&COUNTIF('Score Tracker'!$C$4:C177,'Score Tracker'!C177)","v":"0"}]
[null,175,{"$f":"'Score Tracker'!C178&COUNTIF('Score Tracker'!$C$4:C178,'Score Tracker'!C178)","v":"0"}]
[null,176,{"$f":"'Score Tracker'!C179&COUNTIF('Score Tracker'!$C$4:C179,'Score Tracker'!C179)","v":"0"}]
[null,177,{"$f":"'Score Tracker'!C180&COUNTIF('Score Tracker'!$C$4:C180,'Score Tracker'!C180)","v":"0"}]
[null,178,{"$f":"'Score Tracker'!C181&COUNTIF('Score Tracker'!$C$4:C181,'Score Tracker'!C181)","v":"0"}]
[null,179,{"$f":"'Score Tracker'!C182&COUNTIF('Score Tracker'!$C$4:C182,'Score Tracker'!C182)","v":"0"}]
[null,180,{"$f":"'Score Tracker'!C183&COUNTIF('Score Tracker'!$C$4:C183,'Score Tracker'!C183)","v":"0"}]
[null,181,{"$f":"'Score Tracker'!C184&COUNTIF('Score Tracker'!$C$4:C184,'Score Tracker'!C184)","v":"0"}]
[null,182,{"$f":"'Score Tracker'!C185&COUNTIF('Score Tracker'!$C$4:C185,'Score Tracker'!C185)","v":"0"}]
[null,183,{"$f":"'Score Tracker'!C186&COUNTIF('Score Tracker'!$C$4:C186,'Score Tracker'!C186)","v":"0"}]
[null,184,{"$f":"'Score Tracker'!C187&COUNTIF('Score Tracker'!$C$4:C187,'Score Tracker'!C187)","v":"0"}]
[null,185,{"$f":"'Score Tracker'!C188&COUNTIF('Score Tracker'!$C$4:C188,'Score Tracker'!C188)","v":"0"}]
[null,186,{"$f":"'Score Tracker'!C189&COUNTIF('Score Tracker'!$C$4:C189,'Score Tracker'!C189)","v":"0"}]
[null,187,{"$f":"'Score Tracker'!C190&COUNTIF('Score Tracker'!$C$4:C190,'Score Tracker'!C190)","v":"0"}]
[null,188,{"$f":"'Score Tracker'!C191&COUNTIF('Score Tracker'!$C$4:C191,'Score Tracker'!C191)","v":"0"}]
[null,189,{"$f":"'Score Tracker'!C192&COUNTIF('Score Tracker'!$C$4:C192,'Score Tracker'!C192)","v":"0"}]
[null,190,{"$f":"'Score Tracker'!C193&COUNTIF('Score Tracker'!$C$4:C193,'Score Tracker'!C193)","v":"0"}]
[null,191,{"$f":"'Score Tracker'!C194&COUNTIF('Score Tracker'!$C$4:C194,'Score Tracker'!C194)","v":"0"}]
[null,192,{"$f":"'Score Tracker'!C195&COUNTIF('Score Tracker'!$C$4:C195,'Score Tracker'!C195)","v":"0"}]
[null,193,{"$f":"'Score Tracker'!C196&COUNTIF('Score Tracker'!$C$4:C196,'Score Tracker'!C196)","v":"0"}]
[null,194,{"$f":"'Score Tracker'!C197&COUNTIF('Score Tracker'!$C$4:C197,'Score Tracker'!C197)","v":"0"}]
[null,195,{"$f":"'Score Tracker'!C198&COUNTIF('Score Tracker'!$C$4:C198,'Score Tracker'!C198)","v":"0"}]
[null,196,{"$f":"'Score Tracker'!C199&COUNTIF('Score Tracker'!$C$4:C199,'Score Tracker'!C199)","v":"0"}]
[null,197,{"$f":"'Score Tracker'!C200&COUNTIF('Score Tracker'!$C$4:C200,'Score Tracker'!C200)","v":"0"}]
[null,198,{"$f":"'Score Tracker'!C201&COUNTIF('Score Tracker'!$C$4:C201,'Score Tracker'!C201)","v":"0"}]
[null,199,{"$f":"'Score Tracker'!C202&COUNTIF('Score Tracker'!$C$4:C202,'Score Tracker'!C202)","v":"0"}]
[null,200,{"$f":"'Score Tracker'!C203&COUNTIF('Score Tracker'!$C$4:C203,'Score Tracker'!C203)","v":"0"}]
[null,201,{"$f":"'Score Tracker'!C204&COUNTIF('Score Tracker'!$C$4:C204,'Score Tracker'!C204)","v":"0"}]
[null,202,{"$f":"'Score Tracker'!C205&COUNTIF('Score Tracker'!$C$4:C205,'Score Tracker'!C205)","v":"0"}]
[null,203,{"$f":"'Score Tracker'!C206&COUNTIF('Score Tracker'!$C$4:C206,'Score Tracker'!C206)","v":"0"}]
[null,204,{"$f":"'Score Tracker'!C207&COUNTIF('Score Tracker'!$C$4:C207,'Score Tracker'!C207)","v":"0"}]
[null,205,{"$f":"'Score Tracker'!C208&COUNTIF('Score Tracker'!$C$4:C208,'Score Tracker'!C208)","v":"0"}]
[null,206,{"$f":"'Score Tracker'!C209&COUNTIF('Score Tracker'!$C$4:C209,'Score Tracker'!C209)","v":"0"}]
[null,207,{"$f":"'Score Tracker'!C210&COUNTIF('Score Tracker'!$C$4:C210,'Score Tracker'!C210)","v":"0"}]
[null,208,{"$f":"'Score Tracker'!C211&COUNTIF('Score Tracker'!$C$4:C211,'Score Tracker'!C211)","v":"0"}]
[null,209,{"$f":"'Score Tracker'!C212&COUNTIF('Score Tracker'!$C$4:C212,'Score Tracker'!C212)","v":"0"}]
[null,210,{"$f":"'Score Tracker'!C213&COUNTIF('Score Tracker'!$C$4:C213,'Score Tracker'!C213)","v":"0"}]
[null,211,{"$f":"'Score Tracker'!C214&COUNTIF('Score Tracker'!$C$4:C214,'Score Tracker'!C214)","v":"0"}]
[null,212,{"$f":"'Score Tracker'!C215&COUNTIF('Score Tracker'!$C$4:C215,'Score Tracker'!C215)","v":"0"}]
[null,213,{"$f":"'Score Tracker'!C216&COUNTIF('Score Tracker'!$C$4:C216,'Score Tracker'!C216)","v":"0"}]
[null,214,{"$f":"'Score Tracker'!C217&COUNTIF('Score Tracker'!$C$4:C217,'Score Tracker'!C217)","v":"0"}]
[null,215,{"$f":"'Score Tracker'!C218&COUNTIF('Score Tracker'!$C$4:C218,'Score Tracker'!C218)","v":"0"}]
[null,216,{"$f":"'Score Tracker'!C219&COUNTIF('Score Tracker'!$C$4:C219,'Score Tracker'!C219)","v":"0"}]
[null,217,{"$f":"'Score Tracker'!C220&COUNTIF('Score Tracker'!$C$4:C220,'Score Tracker'!C220)","v":"0"}]
[null,218,{"$f":"'Score Tracker'!C221&COUNTIF('Score Tracker'!$C$4:C221,'Score Tracker'!C221)","v":"0"}]
[null,219,{"$f":"'Score Tracker'!C222&COUNTIF('Score Tracker'!$C$4:C222,'Score Tracker'!C222)","v":"0"}]
[null,220,{"$f":"'Score Tracker'!C223&COUNTIF('Score Tracker'!$C$4:C223,'Score Tracker'!C223)","v":"0"}]
[null,221,{"$f":"'Score Tracker'!C224&COUNTIF('Score Tracker'!$C$4:C224,'Score Tracker'!C224)","v":"0"}]
[null,222,{"$f":"'Score Tracker'!C225&COUNTIF('Score Tracker'!$C$4:C225,'Score Tracker'!C225)","v":"0"}]
[null,223,{"$f":"'Score Tracker'!C226&COUNTIF('Score Tracker'!$C$4:C226,'Score Tracker'!C226)","v":"0"}]
[null,224,{"$f":"'Score Tracker'!C227&COUNTIF('Score Tracker'!$C$4:C227,'Score Tracker'!C227)","v":"0"}]
[null,225,{"$f":"'Score Tracker'!C228&COUNTIF('Score Tracker'!$C$4:C228,'Score Tracker'!C228)","v":"0"}]
[null,226,{"$f":"'Score Tracker'!C229&COUNTIF('Score Tracker'!$C$4:C229,'Score Tracker'!C229)","v":"0"}]
[null,227,{"$f":"'Score Tracker'!C230&COUNTIF('Score Tracker'!$C$4:C230,'Score Tracker'!C230)","v":"0"}]
[null,228,{"$f":"'Score Tracker'!C231&COUNTIF('Score Tracker'!$C$4:C231,'Score Tracker'!C231)","v":"0"}]
[null,229,{"$f":"'Score Tracker'!C232&COUNTIF('Score Tracker'!$C$4:C232,'Score Tracker'!C232)","v":"0"}]
[null,230,{"$f":"'Score Tracker'!C233&COUNTIF('Score Tracker'!$C$4:C233,'Score Tracker'!C233)","v":"0"}]
[null,231,{"$f":"'Score Tracker'!C234&COUNTIF('Score Tracker'!$C$4:C234,'Score Tracker'!C234)","v":"0"}]
[null,232,{"$f":"'Score Tracker'!C235&COUNTIF('Score Tracker'!$C$4:C235,'Score Tracker'!C235)","v":"0"}]
[null,233,{"$f":"'Score Tracker'!C236&COUNTIF('Score Tracker'!$C$4:C236,'Score Tracker'!C236)","v":"0"}]
[null,234,{"$f":"'Score Tracker'!C237&COUNTIF('Score Tracker'!$C$4:C237,'Score Tracker'!C237)","v":"0"}]
[null,235,{"$f":"'Score Tracker'!C238&COUNTIF('Score Tracker'!$C$4:C238,'Score Tracker'!C238)","v":"0"}]
[null,236,{"$f":"'Score Tracker'!C239&COUNTIF('Score Tracker'!$C$4:C239,'Score Tracker'!C239)","v":"0"}]
[null,237,{"$f":"'Score Tracker'!C240&COUNTIF('Score Tracker'!$C$4:C240,'Score Tracker'!C240)","v":"0"}]
[null,238,{"$f":"'Score Tracker'!C241&COUNTIF('Score Tracker'!$C$4:C241,'Score Tracker'!C241)","v":"0"}]
[null,239,{"$f":"'Score Tracker'!C242&COUNTIF('Score Tracker'!$C$4:C242,'Score Tracker'!C242)","v":"0"}]
[null,240,{"$f":"'Score Tracker'!C243&COUNTIF('Score Tracker'!$C$4:C243,'Score Tracker'!C243)","v":"0"}]
[null,241,{"$f":"'Score Tracker'!C244&COUNTIF('Score Tracker'!$C$4:C244,'Score Tracker'!C244)","v":"0"}]
[null,242,{"$f":"'Score Tracker'!C245&COUNTIF('Score Tracker'!$C$4:C245,'Score Tracker'!C245)","v":"0"}]
[null,243,{"$f":"'Score Tracker'!C246&COUNTIF('Score Tracker'!$C$4:C246,'Score Tracker'!C246)","v":"0"}]
[null,244,{"$f":"'Score Tracker'!C247&COUNTIF('Score Tracker'!$C$4:C247,'Score Tracker'!C247)","v":"0"}]
[null,245,{"$f":"'Score Tracker'!C248&COUNTIF('Score Tracker'!$C$4:C248,'Score Tracker'!C248)","v":"0"}]
[null,246,{"$f":"'Score Tracker'!C249&COUNTIF('Score Tracker'!$C$4:C249,'Score Tracker'!C249)","v":"0"}]
[null,247,{"$f":"'Score Tracker'!C250&COUNTIF('Score Tracker'!$C$4:C250,'Score Tracker'!C250)","v":"0"}]
[null,248,{"$f":"'Score Tracker'!C251&COUNTIF('Score Tracker'!$C$4:C251,'Score Tracker'!C251)","v":"0"}]
[null,249,{"$f":"'Score Tracker'!C252&COUNTIF('Score Tracker'!$C$4:C252,'Score Tracker'!C252)","v":"0"}]
[null,250,{"$f":"'Score Tracker'!C253&COUNTIF('Score Tracker'!$C$4:C253,'Score Tracker'!C253)","v":"0"}]
[null,251,{"$f":"'Score Tracker'!C254&COUNTIF('Score Tracker'!$C$4:C254,'Score Tracker'!C254)","v":"0"}]
[null,252,{"$f":"'Score Tracker'!C255&COUNTIF('Score Tracker'!$C$4:C255,'Score Tracker'!C255)","v":"0"}]
[null,253,{"$f":"'Score Tracker'!C256&COUNTIF('Score Tracker'!$C$4:C256,'Score Tracker'!C256)","v":"0"}]
[null,254,{"$f":"'Score Tracker'!C257&COUNTIF('Score Tracker'!$C$4:C257,'Score Tracker'!C257)","v":"0"}]
[null,255,{"$f":"'Score Tracker'!C258&COUNTIF('Score Tracker'!$C$4:C258,'Score Tracker'!C258)","v":"0"}]
[null,256,{"$f":"'Score Tracker'!C259&COUNTIF('Score Tracker'!$C$4:C259,'Score Tracker'!C259)","v":"0"}]
[null,257,{"$f":"'Score Tracker'!C260&COUNTIF('Score Tracker'!$C$4:C260,'Score Tracker'!C260)","v":"0"}]
[null,258,{"$f":"'Score Tracker'!C261&COUNTIF('Score Tracker'!$C$4:C261,'Score Tracker'!C261)","v":"0"}]
[null,259,{"$f":"'Score Tracker'!C262&COUNTIF('Score Tracker'!$C$4:C262,'Score Tracker'!C262)","v":"0"}]
[null,260,{"$f":"'Score Tracker'!C263&COUNTIF('Score Tracker'!$C$4:C263,'Score Tracker'!C263)","v":"0"}]
[null,261,{"$f":"'Score Tracker'!C264&COUNTIF('Score Tracker'!$C$4:C264,'Score Tracker'!C264)","v":"0"}]
[null,262,{"$f":"'Score Tracker'!C265&COUNTIF('Score Tracker'!$C$4:C265,'Score Tracker'!C265)","v":"0"}]
[null,263,{"$f":"'Score Tracker'!C266&COUNTIF('Score Tracker'!$C$4:C266,'Score Tracker'!C266)","v":"0"}]
[null,264,{"$f":"'Score Tracker'!C267&COUNTIF('Score Tracker'!$C$4:C267,'Score Tracker'!C267)","v":"0"}]
[null,265,{"$f":"'Score Tracker'!C268&COUNTIF('Score Tracker'!$C$4:C268,'Score Tracker'!C268)","v":"0"}]
[null,266,{"$f":"'Score Tracker'!C269&COUNTIF('Score Tracker'!$C$4:C269,'Score Tracker'!C269)","v":"0"}]
[null,267,{"$f":"'Score Tracker'!C270&COUNTIF('Score Tracker'!$C$4:C270,'Score Tracker'!C270)","v":"0"}]
[null,268,{"$f":"'Score Tracker'!C271&COUNTIF('Score Tracker'!$C$4:C271,'Score Tracker'!C271)","v":"0"}]
[null,269,{"$f":"'Score Tracker'!C272&COUNTIF('Score Tracker'!$C$4:C272,'Score Tracker'!C272)","v":"0"}]
[null,270,{"$f":"'Score Tracker'!C273&COUNTIF('Score Tracker'!$C$4:C273,'Score Tracker'!C273)","v":"0"}]
[null,271,{"$f":"'Score Tracker'!C274&COUNTIF('Score Tracker'!$C$4:C274,'Score Tracker'!C274)","v":"0"}]
[null,272,{"$f":"'Score Tracker'!C275&COUNTIF('Score Tracker'!$C$4:C275,'Score Tracker'!C275)","v":"0"}]
[null,273,{"$f":"'Score Tracker'!C276&COUNTIF('Score Tracker'!$C$4:C276,'Score Tracker'!C276)","v":"0"}]
[null,274,{"$f":"'Score Tracker'!C277&COUNTIF('Score Tracker'!$C$4:C277,'Score Tracker'!C277)","v":"0"}]
[null,275,{"$f":"'Score Tracker'!C278&COUNTIF('Score Tracker'!$C$4:C278,'Score Tracker'!C278)","v":"0"}]
[null,276,{"$f":"'Score Tracker'!C279&COUNTIF('Score Tracker'!$C$4:C279,'Score Tracker'!C279)","v":"0"}]
[null,277,{"$f":"'Score Tracker'!C280&COUNTIF('Score Tracker'!$C$4:C280,'Score Tracker'!C280)","v":"0"}]
[null,278,{"$f":"'Score Tracker'!C281&COUNTIF('Score Tracker'!$C$4:C281,'Score Tracker'!C281)","v":"0"}]
[null,279,{"$f":"'Score Tracker'!C282&COUNTIF('Score Tracker'!$C$4:C282,'Score Tracker'!C282)","v":"0"}]
[null,280,{"$f":"'Score Tracker'!C283&COUNTIF('Score Tracker'!$C$4:C283,'Score Tracker'!C283)","v":"0"}]
[null,281,{"$f":"'Score Tracker'!C284&COUNTIF('Score Tracker'!$C$4:C284,'Score Tracker'!C284)","v":"0"}]
[null,282,{"$f":"'Score Tracker'!C285&COUNTIF('Score Tracker'!$C$4:C285,'Score Tracker'!C285)","v":"0"}]
[null,283,{"$f":"'Score Tracker'!C286&COUNTIF('Score Tracker'!$C$4:C286,'Score Tracker'!C286)","v":"0"}]
[null,284,{"$f":"'Score Tracker'!C287&COUNTIF('Score Tracker'!$C$4:C287,'Score Tracker'!C287)","v":"0"}]
[null,285,{"$f":"'Score Tracker'!C288&COUNTIF('Score Tracker'!$C$4:C288,'Score Tracker'!C288)","v":"0"}]
[null,286,{"$f":"'Score Tracker'!C289&COUNTIF('Score Tracker'!$C$4:C289,'Score Tracker'!C289)","v":"0"}]
[null,287,{"$f":"'Score Tracker'!C290&COUNTIF('Score Tracker'!$C$4:C290,'Score Tracker'!C290)","v":"0"}]
[null,288,{"$f":"'Score Tracker'!C291&COUNTIF('Score Tracker'!$C$4:C291,'Score Tracker'!C291)","v":"0"}]
[null,289,{"$f":"'Score Tracker'!C292&COUNTIF('Score Tracker'!$C$4:C292,'Score Tracker'!C292)","v":"0"}]
[null,290,{"$f":"'Score Tracker'!C293&COUNTIF('Score Tracker'!$C$4:C293,'Score Tracker'!C293)","v":"0"}]
[null,291,{"$f":"'Score Tracker'!C294&COUNTIF('Score Tracker'!$C$4:C294,'Score Tracker'!C294)","v":"0"}]
[null,292,{"$f":"'Score Tracker'!C295&COUNTIF('Score Tracker'!$C$4:C295,'Score Tracker'!C295)","v":"0"}]
[null,293,{"$f":"'Score Tracker'!C296&COUNTIF('Score Tracker'!$C$4:C296,'Score Tracker'!C296)","v":"0"}]
[null,294,{"$f":"'Score Tracker'!C297&COUNTIF('Score Tracker'!$C$4:C297,'Score Tracker'!C297)","v":"0"}]
[null,295,{"$f":"'Score Tracker'!C298&COUNTIF('Score Tracker'!$C$4:C298,'Score Tracker'!C298)","v":"0"}]
[null,296,{"$f":"'Score Tracker'!C299&COUNTIF('Score Tracker'!$C$4:C299,'Score Tracker'!C299)","v":"0"}]
[null,297,{"$f":"'Score Tracker'!C300&COUNTIF('Score Tracker'!$C$4:C300,'Score Tracker'!C300)","v":"0"}]
[null,298,{"$f":"'Score Tracker'!C301&COUNTIF('Score Tracker'!$C$4:C301,'Score Tracker'!C301)","v":"0"}]
[null,299,{"$f":"'Score Tracker'!C302&COUNTIF('Score Tracker'!$C$4:C302,'Score Tracker'!C302)","v":"0"}]
[null,300,{"$f":"'Score Tracker'!C303&COUNTIF('Score Tracker'!$C$4:C303,'Score Tracker'!C303)","v":"0"}]
[null,301,{"$f":"'Score Tracker'!C304&COUNTIF('Score Tracker'!$C$4:C304,'Score Tracker'!C304)","v":"0"}]
[null,302,{"$f":"'Score Tracker'!C305&COUNTIF('Score Tracker'!$C$4:C305,'Score Tracker'!C305)","v":"0"}]
[null,303,{"$f":"'Score Tracker'!C306&COUNTIF('Score Tracker'!$C$4:C306,'Score Tracker'!C306)","v":"0"}]
[null,304,{"$f":"'Score Tracker'!C307&COUNTIF('Score Tracker'!$C$4:C307,'Score Tracker'!C307)","v":"0"}]
[null,305,{"$f":"'Score Tracker'!C308&COUNTIF('Score Tracker'!$C$4:C308,'Score Tracker'!C308)","v":"0"}]
[null,306,{"$f":"'Score Tracker'!C309&COUNTIF('Score Tracker'!$C$4:C309,'Score Tracker'!C309)","v":"0"}]
[null,307,{"$f":"'Score Tracker'!C310&COUNTIF('Score Tracker'!$C$4:C310,'Score Tracker'!C310)","v":"0"}]
[null,308,{"$f":"'Score Tracker'!C311&COUNTIF('Score Tracker'!$C$4:C311,'Score Tracker'!C311)","v":"0"}]
[null,309,{"$f":"'Score Tracker'!C312&COUNTIF('Score Tracker'!$C$4:C312,'Score Tracker'!C312)","v":"0"}]
[null,310,{"$f":"'Score Tracker'!C313&COUNTIF('Score Tracker'!$C$4:C313,'Score Tracker'!C313)","v":"0"}]
[null,311,{"$f":"'Score Tracker'!C314&COUNTIF('Score Tracker'!$C$4:C314,'Score Tracker'!C314)","v":"0"}]
[null,312,{"$f":"'Score Tracker'!C315&COUNTIF('Score Tracker'!$C$4:C315,'Score Tracker'!C315)","v":"0"}]
[null,313,{"$f":"'Score Tracker'!C316&COUNTIF('Score Tracker'!$C$4:C316,'Score Tracker'!C316)","v":"0"}]
[null,314,{"$f":"'Score Tracker'!C317&COUNTIF('Score Tracker'!$C$4:C317,'Score Tracker'!C317)","v":"0"}]
[null,315,{"$f":"'Score Tracker'!C318&COUNTIF('Score Tracker'!$C$4:C318,'Score Tracker'!C318)","v":"0"}]
[null,316,{"$f":"'Score Tracker'!C319&COUNTIF('Score Tracker'!$C$4:C319,'Score Tracker'!C319)","v":"0"}]
[null,317,{"$f":"'Score Tracker'!C320&COUNTIF('Score Tracker'!$C$4:C320,'Score Tracker'!C320)","v":"0"}]
[null,318,{"$f":"'Score Tracker'!C321&COUNTIF('Score Tracker'!$C$4:C321,'Score Tracker'!C321)","v":"0"}]
[null,319,{"$f":"'Score Tracker'!C322&COUNTIF('Score Tracker'!$C$4:C322,'Score Tracker'!C322)","v":"0"}]
[null,320,{"$f":"'Score Tracker'!C323&COUNTIF('Score Tracker'!$C$4:C323,'Score Tracker'!C323)","v":"0"}]
[null,321,{"$f":"'Score Tracker'!C324&COUNTIF('Score Tracker'!$C$4:C324,'Score Tracker'!C324)","v":"0"}]
[null,322,{"$f":"'Score Tracker'!C325&COUNTIF('Score Tracker'!$C$4:C325,'Score Tracker'!C325)","v":"0"}]
[null,323,{"$f":"'Score Tracker'!C326&COUNTIF('Score Tracker'!$C$4:C326,'Score Tracker'!C326)","v":"0"}]
[null,324,{"$f":"'Score Tracker'!C327&COUNTIF('Score Tracker'!$C$4:C327,'Score Tracker'!C327)","v":"0"}]
[null,325,{"$f":"'Score Tracker'!C328&COUNTIF('Score Tracker'!$C$4:C328,'Score Tracker'!C328)","v":"0"}]
[null,326,{"$f":"'Score Tracker'!C329&COUNTIF('Score Tracker'!$C$4:C329,'Score Tracker'!C329)","v":"0"}]
[null,327,{"$f":"'Score Tracker'!C330&COUNTIF('Score Tracker'!$C$4:C330,'Score Tracker'!C330)","v":"0"}]
[null,328,{"$f":"'Score Tracker'!C331&COUNTIF('Score Tracker'!$C$4:C331,'Score Tracker'!C331)","v":"0"}]
[null,329,{"$f":"'Score Tracker'!C332&COUNTIF('Score Tracker'!$C$4:C332,'Score Tracker'!C332)","v":"0"}]
[null,330,{"$f":"'Score Tracker'!C333&COUNTIF('Score Tracker'!$C$4:C333,'Score Tracker'!C333)","v":"0"}]
[null,331,{"$f":"'Score Tracker'!C334&COUNTIF('Score Tracker'!$C$4:C334,'Score Tracker'!C334)","v":"0"}]
[null,332,{"$f":"'Score Tracker'!C335&COUNTIF('Score Tracker'!$C$4:C335,'Score Tracker'!C335)","v":"0"}]
[null,333,{"$f":"'Score Tracker'!C336&COUNTIF('Score Tracker'!$C$4:C336,'Score Tracker'!C336)","v":"0"}]
[null,334,{"$f":"'Score Tracker'!C337&COUNTIF('Score Tracker'!$C$4:C337,'Score Tracker'!C337)","v":"0"}]
[null,335,{"$f":"'Score Tracker'!C338&COUNTIF('Score Tracker'!$C$4:C338,'Score Tracker'!C338)","v":"0"}]
[null,336,{"$f":"'Score Tracker'!C339&COUNTIF('Score Tracker'!$C$4:C339,'Score Tracker'!C339)","v":"0"}]
[null,337,{"$f":"'Score Tracker'!C340&COUNTIF('Score Tracker'!$C$4:C340,'Score Tracker'!C340)","v":"0"}]
[null,338,{"$f":"'Score Tracker'!C341&COUNTIF('Score Tracker'!$C$4:C341,'Score Tracker'!C341)","v":"0"}]
[null,339,{"$f":"'Score Tracker'!C342&COUNTIF('Score Tracker'!$C$4:C342,'Score Tracker'!C342)","v":"0"}]
[null,340,{"$f":"'Score Tracker'!C343&COUNTIF('Score Tracker'!$C$4:C343,'Score Tracker'!C343)","v":"0"}]
[null,341,{"$f":"'Score Tracker'!C344&COUNTIF('Score Tracker'!$C$4:C344,'Score Tracker'!C344)","v":"0"}]
[null,342,{"$f":"'Score Tracker'!C345&COUNTIF('Score Tracker'!$C$4:C345,'Score Tracker'!C345)","v":"0"}]
[null,343,{"$f":"'Score Tracker'!C346&COUNTIF('Score Tracker'!$C$4:C346,'Score Tracker'!C346)","v":"0"}]
[null,344,{"$f":"'Score Tracker'!C347&COUNTIF('Score Tracker'!$C$4:C347,'Score Tracker'!C347)","v":"0"}]
[null,345,{"$f":"'Score Tracker'!C348&COUNTIF('Score Tracker'!$C$4:C348,'Score Tracker'!C348)","v":"0"}]
[null,346,{"$f":"'Score Tracker'!C349&COUNTIF('Score Tracker'!$C$4:C349,'Score Tracker'!C349)","v":"0"}]
[null,347,{"$f":"'Score Tracker'!C350&COUNTIF('Score Tracker'!$C$4:C350,'Score Tracker'!C350)","v":"0"}]
[null,348,{"$f":"'Score Tracker'!C351&COUNTIF('Score Tracker'!$C$4:C351,'Score Tracker'!C351)","v":"0"}]
[null,349,{"$f":"'Score Tracker'!C352&COUNTIF('Score Tracker'!$C$4:C352,'Score Tracker'!C352)","v":"0"}]
[null,350,{"$f":"'Score Tracker'!C353&COUNTIF('Score Tracker'!$C$4:C353,'Score Tracker'!C353)","v":"0"}]
[null,351,{"$f":"'Score Tracker'!C354&COUNTIF('Score Tracker'!$C$4:C354,'Score Tracker'!C354)","v":"0"}]
[null,352,{"$f":"'Score Tracker'!C355&COUNTIF('Score Tracker'!$C$4:C355,'Score Tracker'!C355)","v":"0"}]
[null,353,{"$f":"'Score Tracker'!C356&COUNTIF('Score Tracker'!$C$4:C356,'Score Tracker'!C356)","v":"0"}]
[null,354,{"$f":"'Score Tracker'!C357&COUNTIF('Score Tracker'!$C$4:C357,'Score Tracker'!C357)","v":"0"}]
[null,355,{"$f":"'Score Tracker'!C358&COUNTIF('Score Tracker'!$C$4:C358,'Score Tracker'!C358)","v":"0"}]
[null,356,{"$f":"'Score Tracker'!C359&COUNTIF('Score Tracker'!$C$4:C359,'Score Tracker'!C359)","v":"0"}]
[null,357,{"$f":"'Score Tracker'!C360&COUNTIF('Score Tracker'!$C$4:C360,'Score Tracker'!C360)","v":"0"}]
[null,358,{"$f":"'Score Tracker'!C361&COUNTIF('Score Tracker'!$C$4:C361,'Score Tracker'!C361)","v":"0"}]
[null,359,{"$f":"'Score Tracker'!C362&COUNTIF('Score Tracker'!$C$4:C362,'Score Tracker'!C362)","v":"0"}]
[null,360,{"$f":"'Score Tracker'!C363&COUNTIF('Score Tracker'!$C$4:C363,'Score Tracker'!C363)","v":"0"}]
[null,361,{"$f":"'Score Tracker'!C364&COUNTIF('Score Tracker'!$C$4:C364,'Score Tracker'!C364)","v":"0"}]
[null,362,{"$f":"'Score Tracker'!C365&COUNTIF('Score Tracker'!$C$4:C365,'Score Tracker'!C365)","v":"0"}]
[null,363,{"$f":"'Score Tracker'!C366&COUNTIF('Score Tracker'!$C$4:C366,'Score Tracker'!C366)","v":"0"}]
[null,364,{"$f":"'Score Tracker'!C367&COUNTIF('Score Tracker'!$C$4:C367,'Score Tracker'!C367)","v":"0"}]
[null,365,{"$f":"'Score Tracker'!C368&COUNTIF('Score Tracker'!$C$4:C368,'Score Tracker'!C368)","v":"0"}]
[null,366,{"$f":"'Score Tracker'!C369&COUNTIF('Score Tracker'!$C$4:C369,'Score Tracker'!C369)","v":"0"}]
[null,367,{"$f":"'Score Tracker'!C370&COUNTIF('Score Tracker'!$C$4:C370,'Score Tracker'!C370)","v":"0"}]
[null,368,{"$f":"'Score Tracker'!C371&COUNTIF('Score Tracker'!$C$4:C371,'Score Tracker'!C371)","v":"0"}]
[null,369,{"$f":"'Score Tracker'!C372&COUNTIF('Score Tracker'!$C$4:C372,'Score Tracker'!C372)","v":"0"}]
[null,370,{"$f":"'Score Tracker'!C373&COUNTIF('Score Tracker'!$C$4:C373,'Score Tracker'!C373)","v":"0"}]
[null,371,{"$f":"'Score Tracker'!C374&COUNTIF('Score Tracker'!$C$4:C374,'Score Tracker'!C374)","v":"0"}]
[null,372,{"$f":"'Score Tracker'!C375&COUNTIF('Score Tracker'!$C$4:C375,'Score Tracker'!C375)","v":"0"}]
[null,373,{"$f":"'Score Tracker'!C376&COUNTIF('Score Tracker'!$C$4:C376,'Score Tracker'!C376)","v":"0"}]
[null,374,{"$f":"'Score Tracker'!C377&COUNTIF('Score Tracker'!$C$4:C377,'Score Tracker'!C377)","v":"0"}]
[null,375,{"$f":"'Score Tracker'!C378&COUNTIF('Score Tracker'!$C$4:C378,'Score Tracker'!C378)","v":"0"}]
[null,376,{"$f":"'Score Tracker'!C379&COUNTIF('Score Tracker'!$C$4:C379,'Score Tracker'!C379)","v":"0"}]
[null,377,{"$f":"'Score Tracker'!C380&COUNTIF('Score Tracker'!$C$4:C380,'Score Tracker'!C380)","v":"0"}]
[null,378,{"$f":"'Score Tracker'!C381&COUNTIF('Score Tracker'!$C$4:C381,'Score Tracker'!C381)","v":"0"}]
[null,379,{"$f":"'Score Tracker'!C382&COUNTIF('Score Tracker'!$C$4:C382,'Score Tracker'!C382)","v":"0"}]
[null,380,{"$f":"'Score Tracker'!C383&COUNTIF('Score Tracker'!$C$4:C383,'Score Tracker'!C383)","v":"0"}]
[null,381,{"$f":"'Score Tracker'!C384&COUNTIF('Score Tracker'!$C$4:C384,'Score Tracker'!C384)","v":"0"}]
[null,382,{"$f":"'Score Tracker'!C385&COUNTIF('Score Tracker'!$C$4:C385,'Score Tracker'!C385)","v":"0"}]
[null,383,{"$f":"'Score Tracker'!C386&COUNTIF('Score Tracker'!$C$4:C386,'Score Tracker'!C386)","v":"0"}]
[null,384,{"$f":"'Score Tracker'!C387&COUNTIF('Score Tracker'!$C$4:C387,'Score Tracker'!C387)","v":"0"}]
[null,385,{"$f":"'Score Tracker'!C388&COUNTIF('Score Tracker'!$C$4:C388,'Score Tracker'!C388)","v":"0"}]
[null,386,{"$f":"'Score Tracker'!C389&COUNTIF('Score Tracker'!$C$4:C389,'Score Tracker'!C389)","v":"0"}]
[null,387,{"$f":"'Score Tracker'!C390&COUNTIF('Score Tracker'!$C$4:C390,'Score Tracker'!C390)","v":"0"}]
[null,388,{"$f":"'Score Tracker'!C391&COUNTIF('Score Tracker'!$C$4:C391,'Score Tracker'!C391)","v":"0"}]
[null,389,{"$f":"'Score Tracker'!C392&COUNTIF('Score Tracker'!$C$4:C392,'Score Tracker'!C392)","v":"0"}]
[null,390,{"$f":"'Score Tracker'!C393&COUNTIF('Score Tracker'!$C$4:C393,'Score Tracker'!C393)","v":"0"}]
[null,391,{"$f":"'Score Tracker'!C394&COUNTIF('Score Tracker'!$C$4:C394,'Score Tracker'!C394)","v":"0"}]
[null,392,{"$f":"'Score Tracker'!C395&COUNTIF('Score Tracker'!$C$4:C395,'Score Tracker'!C395)","v":"0"}]
[null,393,{"$f":"'Score Tracker'!C396&COUNTIF('Score Tracker'!$C$4:C396,'Score Tracker'!C396)","v":"0"}]
[null,394,{"$f":"'Score Tracker'!C397&COUNTIF('Score Tracker'!$C$4:C397,'Score Tracker'!C397)","v":"0"}]
[null,395,{"$f":"'Score Tracker'!C398&COUNTIF('Score Tracker'!$C$4:C398,'Score Tracker'!C398)","v":"0"}]
[null,396,{"$f":"'Score Tracker'!C399&COUNTIF('Score Tracker'!$C$4:C399,'Score Tracker'!C399)","v":"0"}]
[null,397,{"$f":"'Score Tracker'!C400&COUNTIF('Score Tracker'!$C$4:C400,'Score Tracker'!C400)","v":"0"}]
[null,398,{"$f":"'Score Tracker'!C401&COUNTIF('Score Tracker'!$C$4:C401,'Score Tracker'!C401)","v":"0"}]
[null,399,{"$f":"'Score Tracker'!C402&COUNTIF('Score Tracker'!$C$4:C402,'Score Tracker'!C402)","v":"0"}]
[null,400,{"$f":"'Score Tracker'!C403&COUNTIF('Score Tracker'!$C$4:C403,'Score Tracker'!C403)","v":"0"}]
[null,401,{"$f":"'Score Tracker'!C404&COUNTIF('Score Tracker'!$C$4:C404,'Score Tracker'!C404)","v":"0"}]
[null,402,{"$f":"'Score Tracker'!C405&COUNTIF('Score Tracker'!$C$4:C405,'Score Tracker'!C405)","v":"0"}]
[null,403,{"$f":"'Score Tracker'!C406&COUNTIF('Score Tracker'!$C$4:C406,'Score Tracker'!C406)","v":"0"}]
[null,404,{"$f":"'Score Tracker'!C407&COUNTIF('Score Tracker'!$C$4:C407,'Score Tracker'!C407)","v":"0"}]
[null,405,{"$f":"'Score Tracker'!C408&COUNTIF('Score Tracker'!$C$4:C408,'Score Tracker'!C408)","v":"0"}]
[null,406,{"$f":"'Score Tracker'!C409&COUNTIF('Score Tracker'!$C$4:C409,'Score Tracker'!C409)","v":"0"}]
[null,407,{"$f":"'Score Tracker'!C410&COUNTIF('Score Tracker'!$C$4:C410,'Score Tracker'!C410)","v":"0"}]
[null,408,{"$f":"'Score Tracker'!C411&COUNTIF('Score Tracker'!$C$4:C411,'Score Tracker'!C411)","v":"0"}]
[null,409,{"$f":"'Score Tracker'!C412&COUNTIF('Score Tracker'!$C$4:C412,'Score Tracker'!C412)","v":"0"}]
[null,410,{"$f":"'Score Tracker'!C413&COUNTIF('Score Tracker'!$C$4:C413,'Score Tracker'!C413)","v":"0"}]
[null,411,{"$f":"'Score Tracker'!C414&COUNTIF('Score Tracker'!$C$4:C414,'Score Tracker'!C414)","v":"0"}]
[null,412,{"$f":"'Score Tracker'!C415&COUNTIF('Score Tracker'!$C$4:C415,'Score Tracker'!C415)","v":"0"}]
[null,413,{"$f":"'Score Tracker'!C416&COUNTIF('Score Tracker'!$C$4:C416,'Score Tracker'!C416)","v":"0"}]
[null,414,{"$f":"'Score Tracker'!C417&COUNTIF('Score Tracker'!$C$4:C417,'Score Tracker'!C417)","v":"0"}]
[null,415,{"$f":"'Score Tracker'!C418&COUNTIF('Score Tracker'!$C$4:C418,'Score Tracker'!C418)","v":"0"}]
[null,416,{"$f":"'Score Tracker'!C419&COUNTIF('Score Tracker'!$C$4:C419,'Score Tracker'!C419)","v":"0"}]
[null,417,{"$f":"'Score Tracker'!C420&COUNTIF('Score Tracker'!$C$4:C420,'Score Tracker'!C420)","v":"0"}]
[null,418,{"$f":"'Score Tracker'!C421&COUNTIF('Score Tracker'!$C$4:C421,'Score Tracker'!C421)","v":"0"}]
[null,419,{"$f":"'Score Tracker'!C422&COUNTIF('Score Tracker'!$C$4:C422,'Score Tracker'!C422)","v":"0"}]
[null,420,{"$f":"'Score Tracker'!C423&COUNTIF('Score Tracker'!$C$4:C423,'Score Tracker'!C423)","v":"0"}]
[null,421,{"$f":"'Score Tracker'!C424&COUNTIF('Score Tracker'!$C$4:C424,'Score Tracker'!C424)","v":"0"}]
[null,422,{"$f":"'Score Tracker'!C425&COUNTIF('Score Tracker'!$C$4:C425,'Score Tracker'!C425)","v":"0"}]
[null,423,{"$f":"'Score Tracker'!C426&COUNTIF('Score Tracker'!$C$4:C426,'Score Tracker'!C426)","v":"0"}]
[null,424,{"$f":"'Score Tracker'!C427&COUNTIF('Score Tracker'!$C$4:C427,'Score Tracker'!C427)","v":"0"}]
[null,425,{"$f":"'Score Tracker'!C428&COUNTIF('Score Tracker'!$C$4:C428,'Score Tracker'!C428)","v":"0"}]
[null,426,{"$f":"'Score Tracker'!C429&COUNTIF('Score Tracker'!$C$4:C429,'Score Tracker'!C429)","v":"0"}]
[null,427,{"$f":"'Score Tracker'!C430&COUNTIF('Score Tracker'!$C$4:C430,'Score Tracker'!C430)","v":"0"}]
[null,428,{"$f":"'Score Tracker'!C431&COUNTIF('Score Tracker'!$C$4:C431,'Score Tracker'!C431)","v":"0"}]
[null,429,{"$f":"'Score Tracker'!C432&COUNTIF('Score Tracker'!$C$4:C432,'Score Tracker'!C432)","v":"0"}]
[null,430,{"$f":"'Score Tracker'!C433&COUNTIF('Score Tracker'!$C$4:C433,'Score Tracker'!C433)","v":"0"}]
[null,431,{"$f":"'Score Tracker'!C434&COUNTIF('Score Tracker'!$C$4:C434,'Score Tracker'!C434)","v":"0"}]
[null,432,{"$f":"'Score Tracker'!C435&COUNTIF('Score Tracker'!$C$4:C435,'Score Tracker'!C435)","v":"0"}]
[null,433,{"$f":"'Score Tracker'!C436&COUNTIF('Score Tracker'!$C$4:C436,'Score Tracker'!C436)","v":"0"}]
[null,434,{"$f":"'Score Tracker'!C437&COUNTIF('Score Tracker'!$C$4:C437,'Score Tracker'!C437)","v":"0"}]
[null,435,{"$f":"'Score Tracker'!C438&COUNTIF('Score Tracker'!$C$4:C438,'Score Tracker'!C438)","v":"0"}]
[null,436,{"$f":"'Score Tracker'!C439&COUNTIF('Score Tracker'!$C$4:C439,'Score Tracker'!C439)","v":"0"}]
[null,437,{"$f":"'Score Tracker'!C440&COUNTIF('Score Tracker'!$C$4:C440,'Score Tracker'!C440)","v":"0"}]
[null,438,{"$f":"'Score Tracker'!C441&COUNTIF('Score Tracker'!$C$4:C441,'Score Tracker'!C441)","v":"0"}]
[null,439,{"$f":"'Score Tracker'!C442&COUNTIF('Score Tracker'!$C$4:C442,'Score Tracker'!C442)","v":"0"}]
[null,440,{"$f":"'Score Tracker'!C443&COUNTIF('Score Tracker'!$C$4:C443,'Score Tracker'!C443)","v":"0"}]
[null,441,{"$f":"'Score Tracker'!C444&COUNTIF('Score Tracker'!$C$4:C444,'Score Tracker'!C444)","v":"0"}]
[null,442,{"$f":"'Score Tracker'!C445&COUNTIF('Score Tracker'!$C$4:C445,'Score Tracker'!C445)","v":"0"}]
[null,443,{"$f":"'Score Tracker'!C446&COUNTIF('Score Tracker'!$C$4:C446,'Score Tracker'!C446)","v":"0"}]
[null,444,{"$f":"'Score Tracker'!C447&COUNTIF('Score Tracker'!$C$4:C447,'Score Tracker'!C447)","v":"0"}]
[null,445,{"$f":"'Score Tracker'!C448&COUNTIF('Score Tracker'!$C$4:C448,'Score Tracker'!C448)","v":"0"}]
[null,446,{"$f":"'Score Tracker'!C449&COUNTIF('Score Tracker'!$C$4:C449,'Score Tracker'!C449)","v":"0"}]
[null,447,{"$f":"'Score Tracker'!C450&COUNTIF('Score Tracker'!$C$4:C450,'Score Tracker'!C450)","v":"0"}]
[null,448,{"$f":"'Score Tracker'!C451&COUNTIF('Score Tracker'!$C$4:C451,'Score Tracker'!C451)","v":"0"}]
[null,449,{"$f":"'Score Tracker'!C452&COUNTIF('Score Tracker'!$C$4:C452,'Score Tracker'!C452)","v":"0"}]
[null,450,{"$f":"'Score Tracker'!C453&COUNTIF('Score Tracker'!$C$4:C453,'Score Tracker'!C453)","v":"0"}]
[null,451,{"$f":"'Score Tracker'!C454&COUNTIF('Score Tracker'!$C$4:C454,'Score Tracker'!C454)","v":"0"}]
[null,452,{"$f":"'Score Tracker'!C455&COUNTIF('Score Tracker'!$C$4:C455,'Score Tracker'!C455)","v":"0"}]
[null,453,{"$f":"'Score Tracker'!C456&COUNTIF('Score Tracker'!$C$4:C456,'Score Tracker'!C456)","v":"0"}]
[null,454,{"$f":"'Score Tracker'!C457&COUNTIF('Score Tracker'!$C$4:C457,'Score Tracker'!C457)","v":"0"}]
[null,455,{"$f":"'Score Tracker'!C458&COUNTIF('Score Tracker'!$C$4:C458,'Score Tracker'!C458)","v":"0"}]
[null,456,{"$f":"'Score Tracker'!C459&COUNTIF('Score Tracker'!$C$4:C459,'Score Tracker'!C459)","v":"0"}]
[null,457,{"$f":"'Score Tracker'!C460&COUNTIF('Score Tracker'!$C$4:C460,'Score Tracker'!C460)","v":"0"}]
[null,458,{"$f":"'Score Tracker'!C461&COUNTIF('Score Tracker'!$C$4:C461,'Score Tracker'!C461)","v":"0"}]
[null,459,{"$f":"'Score Tracker'!C462&COUNTIF('Score Tracker'!$C$4:C462,'Score Tracker'!C462)","v":"0"}]
[null,460,{"$f":"'Score Tracker'!C463&COUNTIF('Score Tracker'!$C$4:C463,'Score Tracker'!C463)","v":"0"}]
[null,461,{"$f":"'Score Tracker'!C464&COUNTIF('Score Tracker'!$C$4:C464,'Score Tracker'!C464)","v":"0"}]
[null,462,{"$f":"'Score Tracker'!C465&COUNTIF('Score Tracker'!$C$4:C465,'Score Tracker'!C465)","v":"0"}]
[null,463,{"$f":"'Score Tracker'!C466&COUNTIF('Score Tracker'!$C$4:C466,'Score Tracker'!C466)","v":"0"}]
[null,464,{"$f":"'Score Tracker'!C467&COUNTIF('Score Tracker'!$C$4:C467,'Score Tracker'!C467)","v":"0"}]
[null,465,{"$f":"'Score Tracker'!C468&COUNTIF('Score Tracker'!$C$4:C468,'Score Tracker'!C468)","v":"0"}]
[null,466,{"$f":"'Score Tracker'!C469&COUNTIF('Score Tracker'!$C$4:C469,'Score Tracker'!C469)","v":"0"}]
[null,467,{"$f":"'Score Tracker'!C470&COUNTIF('Score Tracker'!$C$4:C470,'Score Tracker'!C470)","v":"0"}]
[null,468,{"$f":"'Score Tracker'!C471&COUNTIF('Score Tracker'!$C$4:C471,'Score Tracker'!C471)","v":"0"}]
[null,469,{"$f":"'Score Tracker'!C472&COUNTIF('Score Tracker'!$C$4:C472,'Score Tracker'!C472)","v":"0"}]
[null,470,{"$f":"'Score Tracker'!C473&COUNTIF('Score Tracker'!$C$4:C473,'Score Tracker'!C473)","v":"0"}]
[null,471,{"$f":"'Score Tracker'!C474&COUNTIF('Score Tracker'!$C$4:C474,'Score Tracker'!C474)","v":"0"}]
[null,472,{"$f":"'Score Tracker'!C475&COUNTIF('Score Tracker'!$C$4:C475,'Score Tracker'!C475)","v":"0"}]
[null,473,{"$f":"'Score Tracker'!C476&COUNTIF('Score Tracker'!$C$4:C476,'Score Tracker'!C476)","v":"0"}]
[null,474,{"$f":"'Score Tracker'!C477&COUNTIF('Score Tracker'!$C$4:C477,'Score Tracker'!C477)","v":"0"}]
[null,475,{"$f":"'Score Tracker'!C478&COUNTIF('Score Tracker'!$C$4:C478,'Score Tracker'!C478)","v":"0"}]
[null,476,{"$f":"'Score Tracker'!C479&COUNTIF('Score Tracker'!$C$4:C479,'Score Tracker'!C479)","v":"0"}]
[null,477,{"$f":"'Score Tracker'!C480&COUNTIF('Score Tracker'!$C$4:C480,'Score Tracker'!C480)","v":"0"}]
[null,478,{"$f":"'Score Tracker'!C481&COUNTIF('Score Tracker'!$C$4:C481,'Score Tracker'!C481)","v":"0"}]
[null,479,{"$f":"'Score Tracker'!C482&COUNTIF('Score Tracker'!$C$4:C482,'Score Tracker'!C482)","v":"0"}]
[null,480,{"$f":"'Score Tracker'!C483&COUNTIF('Score Tracker'!$C$4:C483,'Score Tracker'!C483)","v":"0"}]
[null,481,{"$f":"'Score Tracker'!C484&COUNTIF('Score Tracker'!$C$4:C484,'Score Tracker'!C484)","v":"0"}]
[null,482,{"$f":"'Score Tracker'!C485&COUNTIF('Score Tracker'!$C$4:C485,'Score Tracker'!C485)","v":"0"}]
[null,483,{"$f":"'Score Tracker'!C486&COUNTIF('Score Tracker'!$C$4:C486,'Score Tracker'!C486)","v":"0"}]
[null,484,{"$f":"'Score Tracker'!C487&COUNTIF('Score Tracker'!$C$4:C487,'Score Tracker'!C487)","v":"0"}]
[null,485,{"$f":"'Score Tracker'!C488&COUNTIF('Score Tracker'!$C$4:C488,'Score Tracker'!C488)","v":"0"}]
[null,486,{"$f":"'Score Tracker'!C489&COUNTIF('Score Tracker'!$C$4:C489,'Score Tracker'!C489)","v":"0"}]
[null,487,{"$f":"'Score Tracker'!C490&COUNTIF('Score Tracker'!$C$4:C490,'Score Tracker'!C490)","v":"0"}]
[null,488,{"$f":"'Score Tracker'!C491&COUNTIF('Score Tracker'!$C$4:C491,'Score Tracker'!C491)","v":"0"}]
[null,489,{"$f":"'Score Tracker'!C492&COUNTIF('Score Tracker'!$C$4:C492,'Score Tracker'!C492)","v":"0"}]
[null,490,{"$f":"'Score Tracker'!C493&COUNTIF('Score Tracker'!$C$4:C493,'Score Tracker'!C493)","v":"0"}]
[null,491,{"$f":"'Score Tracker'!C494&COUNTIF('Score Tracker'!$C$4:C494,'Score Tracker'!C494)","v":"0"}]
[null,492,{"$f":"'Score Tracker'!C495&COUNTIF('Score Tracker'!$C$4:C495,'Score Tracker'!C495)","v":"0"}]
[null,493,{"$f":"'Score Tracker'!C496&COUNTIF('Score Tracker'!$C$4:C496,'Score Tracker'!C496)","v":"0"}]
[null,494,{"$f":"'Score Tracker'!C497&COUNTIF('Score Tracker'!$C$4:C497,'Score Tracker'!C497)","v":"0"}]
[null,495,{"$f":"'Score Tracker'!C498&COUNTIF('Score Tracker'!$C$4:C498,'Score Tracker'!C498)","v":"0"}]
[null,496,{"$f":"'Score Tracker'!C499&COUNTIF('Score Tracker'!$C$4:C499,'Score Tracker'!C499)","v":"0"}]
[null,497,{"$f":"'Score Tracker'!C500&COUNTIF('Score Tracker'!$C$4:C500,'Score Tracker'!C500)","v":"0"}]
[null,498,{"$f":"'Score Tracker'!C501&COUNTIF('Score Tracker'!$C$4:C501,'Score Tracker'!C501)","v":"0"}]
[null,499,{"$f":"'Score Tracker'!C502&COUNTIF('Score Tracker'!$C$4:C502,'Score Tracker'!C502)","v":"0"}]
[null,500,{"$f":"'Score Tracker'!C503&COUNTIF('Score Tracker'!$C$4:C503,'Score Tracker'!C503)","v":"0"}]
[null,501,{"$f":"'Score Tracker'!C504&COUNTIF('Score Tracker'!$C$4:C504,'Score Tracker'!C504)","v":"0"}]
[null,502,{"$f":"'Score Tracker'!C505&COUNTIF('Score Tracker'!$C$4:C505,'Score Tracker'!C505)","v":"0"}]
[null,503,{"$f":"'Score Tracker'!C506&COUNTIF('Score Tracker'!$C$4:C506,'Score Tracker'!C506)","v":"0"}]
[null,504,{"$f":"'Score Tracker'!C507&COUNTIF('Score Tracker'!$C$4:C507,'Score Tracker'!C507)","v":"0"}]
[null,505,{"$f":"'Score Tracker'!C508&COUNTIF('Score Tracker'!$C$4:C508,'Score Tracker'!C508)","v":"0"}]
[null,506,{"$f":"'Score Tracker'!C509&COUNTIF('Score Tracker'!$C$4:C509,'Score Tracker'!C509)","v":"0"}]
[null,507,{"$f":"'Score Tracker'!C510&COUNTIF('Score Tracker'!$C$4:C510,'Score Tracker'!C510)","v":"0"}]
[null,508,{"$f":"'Score Tracker'!C511&COUNTIF('Score Tracker'!$C$4:C511,'Score Tracker'!C511)","v":"0"}]
[null,509,{"$f":"'Score Tracker'!C512&COUNTIF('Score Tracker'!$C$4:C512,'Score Tracker'!C512)","v":"0"}]
[null,510,{"$f":"'Score Tracker'!C513&COUNTIF('Score Tracker'!$C$4:C513,'Score Tracker'!C513)","v":"0"}]
[null,511,{"$f":"'Score Tracker'!C514&COUNTIF('Score Tracker'!$C$4:C514,'Score Tracker'!C514)","v":"0"}]
[null,512,{"$f":"'Score Tracker'!C515&COUNTIF('Score Tracker'!$C$4:C515,'Score Tracker'!C515)","v":"0"}]
[null,513,{"$f":"'Score Tracker'!C516&COUNTIF('Score Tracker'!$C$4:C516,'Score Tracker'!C516)","v":"0"}]
[null,514,{"$f":"'Score Tracker'!C517&COUNTIF('Score Tracker'!$C$4:C517,'Score Tracker'!C517)","v":"0"}]
[null,515,{"$f":"'Score Tracker'!C518&COUNTIF('Score Tracker'!$C$4:C518,'Score Tracker'!C518)","v":"0"}]
[null,516,{"$f":"'Score Tracker'!C519&COUNTIF('Score Tracker'!$C$4:C519,'Score Tracker'!C519)","v":"0"}]
[null,517,{"$f":"'Score Tracker'!C520&COUNTIF('Score Tracker'!$C$4:C520,'Score Tracker'!C520)","v":"0"}]
[null,518,{"$f":"'Score Tracker'!C521&COUNTIF('Score Tracker'!$C$4:C521,'Score Tracker'!C521)","v":"0"}]
[null,519,{"$f":"'Score Tracker'!C522&COUNTIF('Score Tracker'!$C$4:C522,'Score Tracker'!C522)","v":"0"}]
[null,520,{"$f":"'Score Tracker'!C523&COUNTIF('Score Tracker'!$C$4:C523,'Score Tracker'!C523)","v":"0"}]
[null,521,{"$f":"'Score Tracker'!C524&COUNTIF('Score Tracker'!$C$4:C524,'Score Tracker'!C524)","v":"0"}]
[null,522,{"$f":"'Score Tracker'!C525&COUNTIF('Score Tracker'!$C$4:C525,'Score Tracker'!C525)","v":"0"}]
[null,523,{"$f":"'Score Tracker'!C526&COUNTIF('Score Tracker'!$C$4:C526,'Score Tracker'!C526)","v":"0"}]
[null,524,{"$f":"'Score Tracker'!C527&COUNTIF('Score Tracker'!$C$4:C527,'Score Tracker'!C527)","v":"0"}]
[null,525,{"$f":"'Score Tracker'!C528&COUNTIF('Score Tracker'!$C$4:C528,'Score Tracker'!C528)","v":"0"}]
[null,526,{"$f":"'Score Tracker'!C529&COUNTIF('Score Tracker'!$C$4:C529,'Score Tracker'!C529)","v":"0"}]
[null,527,{"$f":"'Score Tracker'!C530&COUNTIF('Score Tracker'!$C$4:C530,'Score Tracker'!C530)","v":"0"}]
[null,528,{"$f":"'Score Tracker'!C531&COUNTIF('Score Tracker'!$C$4:C531,'Score Tracker'!C531)","v":"0"}]
[null,529,{"$f":"'Score Tracker'!C532&COUNTIF('Score Tracker'!$C$4:C532,'Score Tracker'!C532)","v":"0"}]
[null,530,{"$f":"'Score Tracker'!C533&COUNTIF('Score Tracker'!$C$4:C533,'Score Tracker'!C533)","v":"0"}]
[null,531,{"$f":"'Score Tracker'!C534&COUNTIF('Score Tracker'!$C$4:C534,'Score Tracker'!C534)","v":"0"}]
[null,532,{"$f":"'Score Tracker'!C535&COUNTIF('Score Tracker'!$C$4:C535,'Score Tracker'!C535)","v":"0"}]
[null,533,{"$f":"'Score Tracker'!C536&COUNTIF('Score Tracker'!$C$4:C536,'Score Tracker'!C536)","v":"0"}]
[null,534,{"$f":"'Score Tracker'!C537&COUNTIF('Score Tracker'!$C$4:C537,'Score Tracker'!C537)","v":"0"}]
[null,535,{"$f":"'Score Tracker'!C538&COUNTIF('Score Tracker'!$C$4:C538,'Score Tracker'!C538)","v":"0"}]
[null,536,{"$f":"'Score Tracker'!C539&COUNTIF('Score Tracker'!$C$4:C539,'Score Tracker'!C539)","v":"0"}]
[null,537,{"$f":"'Score Tracker'!C540&COUNTIF('Score Tracker'!$C$4:C540,'Score Tracker'!C540)","v":"0"}]
[null,538,{"$f":"'Score Tracker'!C541&COUNTIF('Score Tracker'!$C$4:C541,'Score Tracker'!C541)","v":"0"}]
[null,539,{"$f":"'Score Tracker'!C542&COUNTIF('Score Tracker'!$C$4:C542,'Score Tracker'!C542)","v":"0"}]
[null,540,{"$f":"'Score Tracker'!C543&COUNTIF('Score Tracker'!$C$4:C543,'Score Tracker'!C543)","v":"0"}]
[null,541,{"$f":"'Score Tracker'!C544&COUNTIF('Score Tracker'!$C$4:C544,'Score Tracker'!C544)","v":"0"}]
[null,542,{"$f":"'Score Tracker'!C545&COUNTIF('Score Tracker'!$C$4:C545,'Score Tracker'!C545)","v":"0"}]
[null,543,{"$f":"'Score Tracker'!C546&COUNTIF('Score Tracker'!$C$4:C546,'Score Tracker'!C546)","v":"0"}]
[null,544,{"$f":"'Score Tracker'!C547&COUNTIF('Score Tracker'!$C$4:C547,'Score Tracker'!C547)","v":"0"}]
[null,545,{"$f":"'Score Tracker'!C548&COUNTIF('Score Tracker'!$C$4:C548,'Score Tracker'!C548)","v":"0"}]
[null,546,{"$f":"'Score Tracker'!C549&COUNTIF('Score Tracker'!$C$4:C549,'Score Tracker'!C549)","v":"0"}]
[null,547,{"$f":"'Score Tracker'!C550&COUNTIF('Score Tracker'!$C$4:C550,'Score Tracker'!C550)","v":"0"}]
[null,548,{"$f":"'Score Tracker'!C551&COUNTIF('Score Tracker'!$C$4:C551,'Score Tracker'!C551)","v":"0"}]
[null,549,{"$f":"'Score Tracker'!C552&COUNTIF('Score Tracker'!$C$4:C552,'Score Tracker'!C552)","v":"0"}]
[null,550,{"$f":"'Score Tracker'!C553&COUNTIF('Score Tracker'!$C$4:C553,'Score Tracker'!C553)","v":"0"}]
[null,551,{"$f":"'Score Tracker'!C554&COUNTIF('Score Tracker'!$C$4:C554,'Score Tracker'!C554)","v":"0"}]
[null,552,{"$f":"'Score Tracker'!C555&COUNTIF('Score Tracker'!$C$4:C555,'Score Tracker'!C555)","v":"0"}]
[null,553,{"$f":"'Score Tracker'!C556&COUNTIF('Score Tracker'!$C$4:C556,'Score Tracker'!C556)","v":"0"}]
[null,554,{"$f":"'Score Tracker'!C557&COUNTIF('Score Tracker'!$C$4:C557,'Score Tracker'!C557)","v":"0"}]
[null,555,{"$f":"'Score Tracker'!C558&COUNTIF('Score Tracker'!$C$4:C558,'Score Tracker'!C558)","v":"0"}]
[null,556,{"$f":"'Score Tracker'!C559&COUNTIF('Score Tracker'!$C$4:C559,'Score Tracker'!C559)","v":"0"}]
[null,557,{"$f":"'Score Tracker'!C560&COUNTIF('Score Tracker'!$C$4:C560,'Score Tracker'!C560)","v":"0"}]
[null,558,{"$f":"'Score Tracker'!C561&COUNTIF('Score Tracker'!$C$4:C561,'Score Tracker'!C561)","v":"0"}]
[null,559,{"$f":"'Score Tracker'!C562&COUNTIF('Score Tracker'!$C$4:C562,'Score Tracker'!C562)","v":"0"}]
[null,560,{"$f":"'Score Tracker'!C563&COUNTIF('Score Tracker'!$C$4:C563,'Score Tracker'!C563)","v":"0"}]
[null,561,{"$f":"'Score Tracker'!C564&COUNTIF('Score Tracker'!$C$4:C564,'Score Tracker'!C564)","v":"0"}]
[null,562,{"$f":"'Score Tracker'!C565&COUNTIF('Score Tracker'!$C$4:C565,'Score Tracker'!C565)","v":"0"}]
[null,563,{"$f":"'Score Tracker'!C566&COUNTIF('Score Tracker'!$C$4:C566,'Score Tracker'!C566)","v":"0"}]
[null,564,{"$f":"'Score Tracker'!C567&COUNTIF('Score Tracker'!$C$4:C567,'Score Tracker'!C567)","v":"0"}]
[null,565,{"$f":"'Score Tracker'!C568&COUNTIF('Score Tracker'!$C$4:C568,'Score Tracker'!C568)","v":"0"}]
[null,566,{"$f":"'Score Tracker'!C569&COUNTIF('Score Tracker'!$C$4:C569,'Score Tracker'!C569)","v":"0"}]
[null,567,{"$f":"'Score Tracker'!C570&COUNTIF('Score Tracker'!$C$4:C570,'Score Tracker'!C570)","v":"0"}]
[null,568,{"$f":"'Score Tracker'!C571&COUNTIF('Score Tracker'!$C$4:C571,'Score Tracker'!C571)","v":"0"}]
[null,569,{"$f":"'Score Tracker'!C572&COUNTIF('Score Tracker'!$C$4:C572,'Score Tracker'!C572)","v":"0"}]
[null,570,{"$f":"'Score Tracker'!C573&COUNTIF('Score Tracker'!$C$4:C573,'Score Tracker'!C573)","v":"0"}]
[null,571,{"$f":"'Score Tracker'!C574&COUNTIF('Score Tracker'!$C$4:C574,'Score Tracker'!C574)","v":"0"}]
[null,572,{"$f":"'Score Tracker'!C575&COUNTIF('Score Tracker'!$C$4:C575,'Score Tracker'!C575)","v":"0"}]
[null,573,{"$f":"'Score Tracker'!C576&COUNTIF('Score Tracker'!$C$4:C576,'Score Tracker'!C576)","v":"0"}]
[null,574,{"$f":"'Score Tracker'!C577&COUNTIF('Score Tracker'!$C$4:C577,'Score Tracker'!C577)","v":"0"}]
[null,575,{"$f":"'Score Tracker'!C578&COUNTIF('Score Tracker'!$C$4:C578,'Score Tracker'!C578)","v":"0"}]
[null,576,{"$f":"'Score Tracker'!C579&COUNTIF('Score Tracker'!$C$4:C579,'Score Tracker'!C579)","v":"0"}]
[null,577,{"$f":"'Score Tracker'!C580&COUNTIF('Score Tracker'!$C$4:C580,'Score Tracker'!C580)","v":"0"}]
[null,578,{"$f":"'Score Tracker'!C581&COUNTIF('Score Tracker'!$C$4:C581,'Score Tracker'!C581)","v":"0"}]
[null,579,{"$f":"'Score Tracker'!C582&COUNTIF('Score Tracker'!$C$4:C582,'Score Tracker'!C582)","v":"0"}]
[null,580,{"$f":"'Score Tracker'!C583&COUNTIF('Score Tracker'!$C$4:C583,'Score Tracker'!C583)","v":"0"}]
[null,581,{"$f":"'Score Tracker'!C584&COUNTIF('Score Tracker'!$C$4:C584,'Score Tracker'!C584)","v":"0"}]
[null,582,{"$f":"'Score Tracker'!C585&COUNTIF('Score Tracker'!$C$4:C585,'Score Tracker'!C585)","v":"0"}]
[null,583,{"$f":"'Score Tracker'!C586&COUNTIF('Score Tracker'!$C$4:C586,'Score Tracker'!C586)","v":"0"}]
[null,584,{"$f":"'Score Tracker'!C587&COUNTIF('Score Tracker'!$C$4:C587,'Score Tracker'!C587)","v":"0"}]
[null,585,{"$f":"'Score Tracker'!C588&COUNTIF('Score Tracker'!$C$4:C588,'Score Tracker'!C588)","v":"0"}]
[null,586,{"$f":"'Score Tracker'!C589&COUNTIF('Score Tracker'!$C$4:C589,'Score Tracker'!C589)","v":"0"}]
[null,587,{"$f":"'Score Tracker'!C590&COUNTIF('Score Tracker'!$C$4:C590,'Score Tracker'!C590)","v":"0"}]
[null,588,{"$f":"'Score Tracker'!C591&COUNTIF('Score Tracker'!$C$4:C591,'Score Tracker'!C591)","v":"0"}]
[null,589,{"$f":"'Score Tracker'!C592&COUNTIF('Score Tracker'!$C$4:C592,'Score Tracker'!C592)","v":"0"}]
[null,590,{"$f":"'Score Tracker'!C593&COUNTIF('Score Tracker'!$C$4:C593,'Score Tracker'!C593)","v":"0"}]
[null,591,{"$f":"'Score Tracker'!C594&COUNTIF('Score Tracker'!$C$4:C594,'Score Tracker'!C594)","v":"0"}]
[null,592,{"$f":"'Score Tracker'!C595&COUNTIF('Score Tracker'!$C$4:C595,'Score Tracker'!C595)","v":"0"}]
[null,593,{"$f":"'Score Tracker'!C596&COUNTIF('Score Tracker'!$C$4:C596,'Score Tracker'!C596)","v":"0"}]
[null,594,{"$f":"'Score Tracker'!C597&COUNTIF('Score Tracker'!$C$4:C597,'Score Tracker'!C597)","v":"0"}]
[null,595,{"$f":"'Score Tracker'!C598&COUNTIF('Score Tracker'!$C$4:C598,'Score Tracker'!C598)","v":"0"}]
[null,596,{"$f":"'Score Tracker'!C599&COUNTIF('Score Tracker'!$C$4:C599,'Score Tracker'!C599)","v":"0"}]
[null,597,{"$f":"'Score Tracker'!C600&COUNTIF('Score Tracker'!$C$4:C600,'Score Tracker'!C600)","v":"0"}]
[null,598,{"$f":"'Score Tracker'!C601&COUNTIF('Score Tracker'!$C$4:C601,'Score Tracker'!C601)","v":"0"}]
[null,599,{"$f":"'Score Tracker'!C602&COUNTIF('Score Tracker'!$C$4:C602,'Score Tracker'!C602)","v":"0"}]
[null,600,{"$f":"'Score Tracker'!C603&COUNTIF('Score Tracker'!$C$4:C603,'Score Tracker'!C603)","v":"0"}]
[null,601,{"$f":"'Score Tracker'!C604&COUNTIF('Score Tracker'!$C$4:C604,'Score Tracker'!C604)","v":"0"}]
[null,602,{"$f":"'Score Tracker'!C605&COUNTIF('Score Tracker'!$C$4:C605,'Score Tracker'!C605)","v":"0"}]
[null,603,{"$f":"'Score Tracker'!C606&COUNTIF('Score Tracker'!$C$4:C606,'Score Tracker'!C606)","v":"0"}]
[null,604,{"$f":"'Score Tracker'!C607&COUNTIF('Score Tracker'!$C$4:C607,'Score Tracker'!C607)","v":"0"}]
[null,605,{"$f":"'Score Tracker'!C608&COUNTIF('Score Tracker'!$C$4:C608,'Score Tracker'!C608)","v":"0"}]
[null,606,{"$f":"'Score Tracker'!C609&COUNTIF('Score Tracker'!$C$4:C609,'Score Tracker'!C609)","v":"0"}]
[null,607,{"$f":"'Score Tracker'!C610&COUNTIF('Score Tracker'!$C$4:C610,'Score Tracker'!C610)","v":"0"}]
[null,608,{"$f":"'Score Tracker'!C611&COUNTIF('Score Tracker'!$C$4:C611,'Score Tracker'!C611)","v":"0"}]
[null,609,{"$f":"'Score Tracker'!C612&COUNTIF('Score Tracker'!$C$4:C612,'Score Tracker'!C612)","v":"0"}]
[null,610,{"$f":"'Score Tracker'!C613&COUNTIF('Score Tracker'!$C$4:C613,'Score Tracker'!C613)","v":"0"}]
[null,611,{"$f":"'Score Tracker'!C614&COUNTIF('Score Tracker'!$C$4:C614,'Score Tracker'!C614)","v":"0"}]
[null,612,{"$f":"'Score Tracker'!C615&COUNTIF('Score Tracker'!$C$4:C615,'Score Tracker'!C615)","v":"0"}]
[null,613,{"$f":"'Score Tracker'!C616&COUNTIF('Score Tracker'!$C$4:C616,'Score Tracker'!C616)","v":"0"}]
[null,614,{"$f":"'Score Tracker'!C617&COUNTIF('Score Tracker'!$C$4:C617,'Score Tracker'!C617)","v":"0"}]
[null,615,{"$f":"'Score Tracker'!C618&COUNTIF('Score Tracker'!$C$4:C618,'Score Tracker'!C618)","v":"0"}]
[null,616,{"$f":"'Score Tracker'!C619&COUNTIF('Score Tracker'!$C$4:C619,'Score Tracker'!C619)","v":"0"}]
[null,617,{"$f":"'Score Tracker'!C620&COUNTIF('Score Tracker'!$C$4:C620,'Score Tracker'!C620)","v":"0"}]
[null,618,{"$f":"'Score Tracker'!C621&COUNTIF('Score Tracker'!$C$4:C621,'Score Tracker'!C621)","v":"0"}]
[null,619,{"$f":"'Score Tracker'!C622&COUNTIF('Score Tracker'!$C$4:C622,'Score Tracker'!C622)","v":"0"}]
[null,620,{"$f":"'Score Tracker'!C623&COUNTIF('Score Tracker'!$C$4:C623,'Score Tracker'!C623)","v":"0"}]
[null,621,{"$f":"'Score Tracker'!C624&COUNTIF('Score Tracker'!$C$4:C624,'Score Tracker'!C624)","v":"0"}]
[null,622,{"$f":"'Score Tracker'!C625&COUNTIF('Score Tracker'!$C$4:C625,'Score Tracker'!C625)","v":"0"}]
[null,623,{"$f":"'Score Tracker'!C626&COUNTIF('Score Tracker'!$C$4:C626,'Score Tracker'!C626)","v":"0"}]
[null,624,{"$f":"'Score Tracker'!C627&COUNTIF('Score Tracker'!$C$4:C627,'Score Tracker'!C627)","v":"0"}]
[null,625,{"$f":"'Score Tracker'!C628&COUNTIF('Score Tracker'!$C$4:C628,'Score Tracker'!C628)","v":"0"}]